{"text_format":"1","workbook":"xlsx","n_sheets":4,"sheets":["Match","Adresses","Ecussons","Classification"],"not_rendered":{"charts":0,"images":33,"macros":1,"external_links":2,"defined_names":72,"comments":1,"pivot_tables":0},"unopened":[],"bounds":{"document_bytes":16777216,"sheet_cells":100000,"rows_first":2000,"rows_last":500,"rows_between":2000,"halvings":0,"cell_chars":16384,"cell_head_chars":4096},"cells_cut":0,"cells_raw":0,"read":"whole","date_system":"1900"}

{"sheet":"Match","index":0,"n_rows":33,"n_cols":35,"rows_kept":33,"cut":false,"hidden":false,"merged":[[32,1,34,1],[32,2,34,16],[23,1,24,2],[23,3,24,4],[23,8,24,8],[23,9,24,10],[23,11,24,12],[23,16,24,16],[28,1,29,5],[28,6,30,9],[19,16,20,16],[19,12,20,12],[28,10,29,16],[30,1,30,5],[30,10,30,16],[21,13,22,13],[21,14,22,14],[21,15,22,15],[21,16,22,16],[22,2,22,3],[22,10,22,11],[21,4,22,4],[21,5,22,5],[21,6,22,6],[21,7,22,7],[21,8,22,8],[21,12,22,12],[18,2,18,3],[18,10,18,11],[19,13,20,13],[19,14,20,14],[20,2,20,3],[20,10,20,11],[19,4,20,4],[19,5,20,5],[19,6,20,6],[19,7,20,7],[19,8,20,8],[19,15,20,15],[17,12,18,12],[17,13,18,13],[17,14,18,14],[17,15,18,15],[17,16,18,16],[17,4,18,4],[17,5,18,5],[17,6,18,6],[17,7,18,7],[17,8,18,8],[14,1,15,7],[14,8,15,8],[14,9,15,15],[14,16,15,16],[10,1,11,8],[10,9,11,16],[12,1,13,8],[12,9,13,16],[2,1,8,1],[5,2,5,3],[7,3,7,5],[8,3,8,5],[8,10,8,16]]}
[]
[null,null,null,null,null,null,null,null,null,null,null,null,null,null,null,null,null,null,null,null,null,null,"TRIATHLON D1 (Libre ; Bande ; 3 bandes)",{"$f":"IF(J11=W2,1,IF(J11=W3,2,IF(J11=W4,3,IF(J11=W5,4,0))))","v":0},"D2","LIBRE",null,"D2","BANDE",null,"D2","3 BANDES",null,"D2","CADRES"]
[13236,null,{"$f":"IF(A3=\"\",\"\",IF(VLOOKUP(A3,club,3,FALSE)=0,\"\",VLOOKUP(A3,club,3,FALSE)))","v":"BILLARD Français VILLENEUVE D'ASCQ"},null,null,null,null,null,null,null,null,null,null,null,null,null,null,null,null,null,null,null,"TRIATHLON D1 (Libre ; Bande ; Cadre)",null,"R1",150,null,"R1",60,null,"R1",20,null,"R1",80]
[null,null,{"$f":"IF(A3=\"\",\"\",IF(VLOOKUP(A3,club,4,FALSE)=0,\"\",VLOOKUP(A3,club,4,FALSE)))","v":""},null,null,null,null,null,null,null,null,null,null,null,null,null,null,null,null,null,null,null,"TRIATHLON D2 (Libre ; Bande ; 3 bandes)",null,"R2",100,null,"R2",40,null,"R2",15,null,"N1","NON"]
[null,null,{"$f":"IF(A3=\"\",\"\",IF(VLOOKUP(A3,club,5,FALSE)=0,\"\",VLOOKUP(A3,club,5,FALSE)))","v":"3 rue jean vilar"},null,null,null,null,null,null,null,null,null,null,null,null,null,null,null,null,null,null,null,"TRIATHLON D2 (Libre ; Bande ; Cadre)",null,"R3",70,null,"R3",40,null,"N1","NON",null,"N2","NON"]
[null,null,{"$f":"IF(A3=\"\",\"\",VLOOKUP(A3,club,6,FALSE))","v":59650},null,{"$f":"IF(A3=\"\",\"\",VLOOKUP(A3,club,7,FALSE))","v":"VILLENEUVE D'ASCQ"},null,null,null,null,null,null,null,null,null,null,null,null,null,null,null,null,null,null,null,"R4",50,null,"N1","NON",null,"N2","NON",null,"N3","NON"]
[null,null,null,null,null,null,null,null,null,null,null,null,null,null,null,null,null,null,null,null,null,null,null,null,"N1","NON",null,"N2","NON",null,"N3","NON",null,"MAS","NON"]
[null,null,{"$f":"IF(D8=\"\",\"\",\"(\")","v":"("},{"$f":"IF(A3=\"\",\"\",VLOOKUP(A3,club,8,FALSE))","v":320055726},null,null,null,null,null,null,null,null,null,null,null,null,null,null,null,null,null,null,null,null,"N2","NON",null,"N3","NON",null,"MAS","NON",null,"MASTERS","NON"]
[null,null,{"$f":"IF(D9=\"\",\"\",\":\")","v":""},{"$f":"IF(A3=\"\",\"\",IF(VLOOKUP(A3,club,9,FALSE)=0,\"\",VLOOKUP(A3,club,9,FALSE)))","v":""},null,null,null,null,null,"Date :",null,null,null,null,null,null,null,null,null,null,null,null,null,null,"N3","NON",null,"MAS","NON",null,"MASTERS","NON"]
[null,null,null,null,null,null,null,null,null,null,null,null,null,null,null,null,null,null,null,null,null,null,null,null,"MAS","NON",null,"MASTERS","NON"]
[null,null,null,null,null,null,null,null,null,null,null,null,null,null,null,null,null,null,null,null,null,null,null,null,"MASTERS","NON"]
[null,null,null,null,null,null,null,null,null,null,null,null,null,null,null,null,null,null,null,null,null,null,null,null,"R5",50]
[null,"CLUB VISITE",null,null,null,null,null,null,null,"CLUB VISITEUR"]
[]
[]
[null,null,null,null,null,null,null,null,null,null,null,null,null,null,null,null,null,null,null,null,null,null,null,null,"D1","LIBRE",null,"D1","BANDE",null,"D1","3 BANDES",null,"D1","CADRES"]
[null,"NOM PRENOM                   N° LICENCE","CAT.","Pts à réaliser","Pts réalisés","Reprise","Moyenne","Série ","PTS MATCH","NOM PRENOM                   N° LICENCE","CAT.","Pts à réaliser","Pts réalisés","Reprise","Moyenne","Série ","PTS MATCH",null,null,null,null,null,null,null,"MASTERS",500,null,"MASTERS",165,null,"MASTERS",50,null,"MASTERS",300]
[null,{"$f":"IF(Classification!A1=\"\",\"\",VLOOKUP(Classification!A1,Classification!$A$3:$AC$602,3,FALSE)&\" \"&VLOOKUP(Classification!A1,Classification!$A$3:$AC$602,4,FALSE))","v":""},{"$f":"IF(Classification!A1=\"\",\"\",VLOOKUP(Classification!A1,Classification!$A$3:$AC$602,8,FALSE))","v":""},{"$f":"IF($J$11=\"\",\"\",\"120\")","v":""},null,null,{"$f":"IF(OR(E18=\"\",F18=\"\"),\"\",E18/F18)","v":""},null,{"$f":"IF(OR(D18=\"\",E18=\"\",L18=\"\",M18=\"\"),\"\",IF((E18/D18)>(M18/L18),2,IF((E18/D18)=(M18/L18),1,0)))","v":""},{"$f":"IF(Classification!B1=\"\",\"\",VLOOKUP(Classification!B1,Classification!$A$3:$AC$602,3,FALSE)&\" \"&VLOOKUP(Classification!B1,Classification!$A$3:$AC$602,4,FALSE))","v":""},{"$f":"IF(Classification!B1=\"\",\"\",VLOOKUP(Classification!B1,Classification!$A$3:$AC$602,8,FALSE))","v":""},{"$f":"IF($J$11=\"\",\"\",\"120\")","v":""},null,{"$f":"IF(F18=\"\",\"\",F18)","v":""},{"$f":"IF(OR(M18=\"\",N18=\"\"),\"\",M18/N18)","v":""},null,{"$f":"IF(OR(L18=\"\",M18=\"\",D18=\"\",E18=\"\"),\"\",IF((M18/L18)>(E18/D18),2,IF((M18/L18)=(E18/D18),1,0)))","v":""},null,null,null,null,null,null,null,"N1",375,null,"N1",110,null,"N1",40,null,"N1",200]
[null,{"$f":"IF(Classification!A1=\"\",\"\",VLOOKUP(Classification!A1,Classification!$A$3:$AC$602,6,FALSE))","v":""},{"$f":"IF($J$11=\"\",\"\",\"LIBRE\")","v":""},null,null,null,null,null,null,{"$f":"IF(Classification!B1=\"\",\"\",VLOOKUP(Classification!B1,Classification!$A$3:$AC$602,6,FALSE))","v":""},{"$f":"IF($J$11=\"\",\"\",\"LIBRE\")","v":""},null,null,null,null,null,null,null,null,null,null,null,null,null,"N2",200,null,"N2",80,null,"N2",35,null,"N2",120]
[null,{"$f":"IF(Classification!C1=\"\",\"\",VLOOKUP(Classification!C1,Classification!$A$3:$AC$602,3,FALSE)&\" \"&VLOOKUP(Classification!C1,Classification!$A$3:$AC$602,4,FALSE))","v":""},{"$f":"IF(Classification!C1=\"\",\"\",VLOOKUP(Classification!C1,Classification!$A$3:$AC$602,18,FALSE))","v":""},{"$f":"IF($J$11=\"\",\"\",\"60\")","v":""},null,null,{"$f":"IF(OR(E20=\"\",F20=\"\"),\"\",E20/F20)","v":""},null,{"$f":"IF(OR(D20=\"\",E20=\"\",L20=\"\",M20=\"\"),\"\",IF((E20/D20)>(M20/L20),2,IF((E20/D20)=(M20/L20),1,0)))","v":""},{"$f":"IF(Classification!D1=\"\",\"\",VLOOKUP(Classification!D1,Classification!$A$3:$AC$602,3,FALSE)&\" \"&VLOOKUP(Classification!D1,Classification!$A$3:$AC$602,4,FALSE))","v":""},{"$f":"IF(Classification!D1=\"\",\"\",VLOOKUP(Classification!D1,Classification!$A$3:$AC$602,18,FALSE))","v":""},{"$f":"IF($J$11=\"\",\"\",\"60\")","v":""},null,{"$f":"IF(F20=\"\",\"\",F20)","v":""},{"$f":"IF(OR(M20=\"\",N20=\"\"),\"\",M20/N20)","v":""},null,{"$f":"IF(OR(L20=\"\",M20=\"\",D20=\"\",E20=\"\"),\"\",IF((M20/L20)>(E20/D20),2,IF((M20/L20)=(E20/D20),1,0)))","v":""},null,null,null,null,null,null,null,"R1",150,null,"R1",60,null,"N3",25,null,"N3",120]
[null,{"$f":"IF(Classification!C1=\"\",\"\",VLOOKUP(Classification!C1,Classification!$A$3:$AC$602,6,FALSE))","v":""},{"$f":"IF($J$11=\"\",\"\",\"BANDE\")","v":""},null,null,null,null,null,null,{"$f":"IF(Classification!D1=\"\",\"\",VLOOKUP(Classification!D1,Classification!$A$3:$AC$602,6,FALSE))","v":""},{"$f":"IF($J$11=\"\",\"\",\"BANDE\")","v":""},null,null,null,null,null,null,null,null,null,null,null,null,null,"R2","NON",null,"R2","NON",null,"R1",20,null,"R1",80]
[null,{"$f":"IF(Classification!E1=\"\",\"\",VLOOKUP(Classification!E1,Classification!$A$3:$AC$602,3,FALSE)&\" \"&VLOOKUP(Classification!E1,Classification!$A$3:$AC$602,4,FALSE))","v":""},{"$f":"IF(Classification!E1=\"\",\"\",IF(mode_21=\"3 bandes\",VLOOKUP(Classification!E1,Classification!$A$3:$AC$602,23,FALSE),VLOOKUP(Classification!E1,Classification!$A$3:$AC$602,13,FALSE)))","v":""},{"$f":"IF($J$11=\"\",\"\",\"20\")","v":""},null,null,{"$f":"IF(OR(E22=\"\",F22=\"\"),\"\",E22/F22)","v":""},null,{"$f":"IF(OR(D22=\"\",E22=\"\",L22=\"\",M22=\"\"),\"\",IF((E22/D22)>(M22/L22),2,IF((E22/D22)=(M22/L22),1,0)))","v":""},{"$f":"IF(Classification!F1=\"\",\"\",VLOOKUP(Classification!F1,Classification!$A$3:$AC$602,3,FALSE)&\" \"&VLOOKUP(Classification!F1,Classification!$A$3:$AC$602,4,FALSE))","v":""},{"$f":"IF(Classification!F1=\"\",\"\",IF(mode_22=\"3 bandes\",VLOOKUP(Classification!F1,Classification!$A$3:$AC$602,23,FALSE),VLOOKUP(Classification!F1,Classification!$A$3:$AC$602,13,FALSE)))","v":""},{"$f":"IF($J$11=\"\",\"\",\"20\")","v":""},null,{"$f":"IF(F22=\"\",\"\",F22)","v":""},{"$f":"IF(OR(M22=\"\",N22=\"\"),\"\",M22/N22)","v":""},null,{"$f":"IF(OR(L22=\"\",M22=\"\",D22=\"\",E22=\"\"),\"\",IF((M22/L22)>(E22/D22),2,IF((M22/L22)=(E22/D22),1,0)))","v":""},null,null,null,null,null,null,null,"R3","NON",null,"R3","NON",null,"R2","NON",null,"MAS",300]
[null,{"$f":"IF(Classification!E1=\"\",\"\",VLOOKUP(Classification!E1,Classification!$A$3:$AC$602,6,FALSE))","v":""},{"$f":"IF($X$2=0,\"\",IF(OR($X$2=1,$X$2=3),\"3 BANDES\",\"CADRES\"))","v":""},null,null,null,null,null,null,{"$f":"IF(Classification!F1=\"\",\"\",VLOOKUP(Classification!F1,Classification!$A$3:$AC$602,6,FALSE))","v":""},{"$f":"IF($X$2=0,\"\",IF(OR($X$2=1,$X$2=3),\"3 BANDES\",\"CADRES\"))","v":""},null,null,null,null,null,null,null,null,null,null,null,null,null,"R4","NON",null,"MAS",165,null,"R3","NON"]
[null,"POURCENTAGE DE POINTS REALISES",null,{"$f":"IF(OR(D18=\"\",D20=\"\",D22=\"\"),\"\",((E18/D18+E20/D20+E22/D22))/3)","v":""},null,null,null,null,{"$f":"SUM(I18:I23)","v":0},"POURCENTAGE DE POINTS REALISES",null,{"$f":"IF(OR(L18=\"\",L20=\"\",L22=\"\"),\"\",((M18/L18+M20/L20+M22/L22))/3)","v":""},null,null,null,null,{"$f":"SUM(Q18:Q23)","v":0},null,null,null,null,null,null,null,"R5","NON",null,null,null,null,"MAS",50]
[null,null,null,null,null,null,null,null,null,null,null,null,null,null,null,null,null,null,null,null,null,null,null,null,"MAS",500]
[null,null,"<====Capitaine",null,null,null,null,null,null,null,"<====Capitaine"]
[null,null,"<====Signature du capitaine",null,null,null,null,null,null,null,"<====Signature du capitaine"]
[]
[null,{"$f":"IF(AND(B15=\"\",J15=\"\"),\"\",IF(OR(I24>Q24,I24=Q24),B15,J15))","v":""},null,null,null,null,{"$f":"IF(I24=Q24,\"EGAL\",\"BAT\")","v":"EGAL"},null,null,null,{"$f":"IF(AND(B15=\"\",J15=\"\"),\"\",IF(OR(I24>Q24,I24=Q24),J15,B15))","v":""}]
[]
[null,{"$f":"IF(B29=B15,I24,IF(B29=J15,Q24,\"\"))","v":0},null,null,null,null,null,null,null,null,{"$f":"IF(K29=B15,I24,IF(K29=J15,Q24,\"\"))","v":0}]
[]
[null,"OBSERVATION :"]

{"sheet":"Adresses","index":1,"n_rows":35,"n_cols":10,"rows_kept":35,"cut":false,"hidden":false,"merged":[]}
[]
["N°Club","Ville","Nom Club","Adresse 1","Adresse 2","CP","VILLE2","Tel","Fax","Mel"]
[13101,"ARRAS","BILLARD CLUB ARRAGEOIS","Rue Paul  Claudel ","Résidence Saint Pol",62000,"ARRAS","03 21 23 33 96","03 21 23 33 96","arras.billardclub@wanadoo.fr"]
[13102,"AVION","BILLARD CLUB AVIONNAIS","GRPT Joliot Curie","Avenue Salingue",62210,"AVION",321430945,321420952,"bertrand.fremeaux@wanadoo.fr"]
[13103,"BILLY","BILLARD CLUB BILLYSIEN","3 Avenue de la Fosse 2",null,62420,"BILLY MONTIGNY",321201785,321492144,"billybc@9business.fr"]
[13104,"CARVIN","BILLARD CLUB CARVINOIS","Square Pont du Grès",null,62220,"CARVIN",321740644,321740644,"billard.carvin@cegetel.net"]
[13105,"LENS","AVENIR BILLARD CLUB LENSOIS","Rue Jules Ferry",null,62300,"LENS",321431862,321431862,"sebroussel62@yahoo.fr"]
[13107,"DOUAI","AMICALE BILLARD CLUB DOUAISIEN","Complexe Sportif de la Porte d'Arras","Rue d'Arras",59500,"DOUAI",327960636,327960636,"abcdouaibillard@orange.fr"]
[13109,"AUCHY","BILLARD CLUB AUCHY","Rue de Douai","Complexe Sportif",62138,"AUCHY",321267187,321267187]
[13110,"ANNOEULLIN","SPORT BILLARD CLUB ANNOEULLIN","Rue Watrelot",null,59112,"ANNOEULLIN",320866765,null,"s.b.c.a@orange.fr"]
[13117,"DIVION","BILLARD CLUB DIVIONNAIS","Rue Romain Rolland","Ecole Copernic",62710,"DIVION",321533121,321533121,"bcdivion@free.fr"]
[13123,"FOUQUIERES","BILLARD CLUB FOUQUIERES","38 rue Sainte Menehould",null,62740,"FOUQUIERES",321755759,321755759,"frederic.goetinck@hotmail.fr"]
[13124,"COURRIERES","COURRIERES SPORT BILLARD","28 rue Roger Salengro",null,62710,"COURRIERS",321200335,321200335,"courrieres@artois-billard.com"]
[13226,"WAZEMMES","BILLARD CLUB WAZEMMES","Le Retro","14 rue d'arcol",59000,"LILLE",320872110,null,"fiktoo2@yahoo.fr"]
[13231,"HOUPLINES","BILLARD CLUB HOUPLINES",null,"195 rue victor hugo",59116,"HOUPLINES",320100291,320354728]
[13236,"VILLENEUVE D'ASCQ","BILLARD Français VILLENEUVE D'ASCQ",null,"3 rue jean vilar",59650,"VILLENEUVE D'ASCQ",320055726,null,"davidvankieken@free.fr"]
[13240,"RONCHIN","BILLARD CLUB DU CANON D'OR","Salle Elizabeth dupont","rue pierre Dupont",59790,"RONCHIN",320522000,320521547,"bcco.ronchin@club-internet.fr"]
[13249,"FACHES THUMESNIL","BILLARD CLUB DE FACHES THUMESNIL",null,"173 rue carnot",59155,"FACHES THUMESNIL",320979487,null,"bcft@free.fr"]
[13250,"COUNTRY","LE COUNTRY BILLARD CLUB",null,"22 rue princesse",59000,"LILLE",320744668]
[13251,"LA CHAPELLES","BILLARD CLUB CHAPELLOIS","La plaine de détente","rue omere ollivier",59930,"LA CHAPELLES",320353812,null,"jeanluc.missiaen@wanadoo.fr"]
[13252,"ESTAIRES","BILLARD CLUB ESTAIROIS","Rue Jules Ferry","Impasse Louise de Marillac",59940,"ESTAIRES",328501349,null,"billardestairois@yahoo.fr"]
[13353,"DUNKERQUE","U.S.DUNKERQUOISE","Piscine Asseman","Place paul Asseman",59140,"DUNKERQUE",328669183,null,"usdbillard@wanadoo.fr"]
[13355,"GRAVELINES","U.S.GRAVELINOISE","SPORTICA","Place du polder",59820,"GRAVELINES",328655030,null,"gstop@free.fr"]
[13356,"OUTREAU","BILLARD CLUB OUTREAU","Salle Boër","37 rue jean jaures",62230,"OUTREAU",321803869,null,"eldave.62@orange.fr"]
[13360,"ST POL","BILLARD CLUB ST POLOIS","Centre romain roland","Avenue maurice bertaux",59430,"ST POL",328612377,null,"bc.sainpolois@free.fr"]
[13363,"CUCQ","AMICALE LAIQUE CUCQUOISE","Salle Robert Bouchez","place de l'ancienne mairie",62780,"CUCQ",321845067,null,"billard-de-cucq@wanadoo.fr"]
[13364,"CALAIS","ACADEMIE CALAISIENNE DE BILLARD","Complexe sportif calipso","rue roger martin du gard",62100,"CALAIS",321194394,null,"acbcbillardcalais@wanadoo.fr"]
[13365,"GRANDE-SYNTHE","OLYMPIQUE GRANDE-SYNTHE","Salle léo lagrange","3ter rue rigaud",59760,"GRANDE-SYNTHE",328218392,328218393,"PZERBUL@aol.com"]
[13368,"WIMILLE","BILLARD CLUB DE WIMILLE",null,"72 rue du bon secours",62126,"WIMILLE",321310276,null,"naldo1@hotmail.fr"]
[13369,"WIZERNES","WIZERNES BILLARD CLUB","Résidence marie curie","rue des écoles",62570,"WIZERNES",321392007]
[13370,"LE TOUQUET","LE TOUQUET BILLARD CLUB","Pôle tennistique","rond point des sports",62520,"LE TOUQUET",608047029,null,"letouquetbillardclub@neuf.fr"]
[13477,"VALENCIENNES"]
[13478,"DENAIN","ACADEMIE LA CARAMBOLE","Ancienne école de musique","211 rue de villars",59220,"DENAIN",327292061]
[13481,"BRUAY","BILLARD CLUB BRUAYSIEN",null,"52 rue michel brabant",59860,"Bruay sur escaut",327416004,null,"Billard-club-bruaisien@wanadoo.fr"]
[13482,"CAMBRAI","ACADEMIE DE CAMBRAI","Base de loisirs, Citadelle","La Paix de Nimégue",59400,"CAMBRAI",327783720,null,"Alanbury@free.fr"]

{"sheet":"Ecussons","index":2,"n_rows":27,"n_cols":9,"rows_kept":27,"cut":false,"hidden":false,"merged":[]}
[]
[]
[]
[]
[]
["Annoeulin","Arras","Avion","Billy","Bruay","Calais","Cambrai","Carvin","Courrières"]
[]
[]
[]
[]
[]
[]
["Cucq","Denain","Divion","Douai","Dunkerque","Estaires","Faches Thumesnil","Fouquières","Grande synthe"]
[]
[]
[]
[]
[]
[]
["Gravelines","Houplines","Le touquet","Lens","Outreau","Ronchin","St pol sur mer","Vermelle","Villeneuve d'asq"]
[]
[]
[]
[]
[]
[]
["Wizernes","FFB","59-62","LIGUE","CD59","CD62"]

{"sheet":"Classification","index":3,"n_rows":603,"n_cols":41,"rows_kept":603,"cut":false,"hidden":false,"merged":[]}
[null,null,null,null,null,null,null,null,null,null,null,null,null,null,null,null,null,null,null,null,null,null,null,null,null,null,null,null,null,null,null,null,null,null,null,"ANNOEULLIN",{"$f":"COUNTIF($B$3:$B$655,AJ1)","v":35},{"$f":"AK1+2","v":37},null,null,{"$f":"IF(visite=\"\",\"\",\"a\"&VLOOKUP(visite,$AJ$1:$AL$17,3,FALSE)-VLOOKUP(visite,$AJ$1:$AL$17,2,FALSE)+1&\":\"&\"d\"&VLOOKUP(visite,$AJ$1:$AL$17,3,FALSE))","v":""}]
["Code","Nom Club","Nom","Prenom","Date Naissance","Licence","AN","CAT","Libre","C","*","AN2","CAT3","Cadre","Colonne1","*4","AN3","CAT6","1-Bande","C7","*8","AN4","CAT10","3-Bandes","C11","*12","AN5","5 Quilles",null,null,null,null,null,null,null,"BRUAY SUR ESCAUT",17,{"$f":"AK2+AL1","v":54},null,null,{"$f":"IF(visiteur=\"\",\"\",\"a\"&VLOOKUP(visiteur,$AJ$1:$AL$17,3,FALSE)-VLOOKUP(visiteur,$AJ$1:$AL$17,2,FALSE)+1&\":\"&\"d\"&VLOOKUP(visiteur,$AJ$1:$AL$17,3,FALSE))","v":""}]
[1,"ANNOEULLIN","BAROIS PATRICK",null,null,"138349D",11,"R3",1.36,null,"*",null,null,null,null,null,null,null,null,null,null,null,null,null,null,null,null,null,null,"OK",null,null,null,null,null,"CAMBRAI",20,{"$f":"AK3+AL2","v":74}]
[2,"ANNOEULLIN","BEGHIN BENJAMIN",null,null,"145779X",null,null,null,null,null,null,null,null,null,null,null,null,null,null,null,null,null,null,null,null,null,null,null,"OK",null,null,null,null,null,"CHAPELLE ARMENTIERES",7,81]
[3,"ANNOEULLIN","BEGHIN NICOLAS",null,null,"148048X",null,null,null,null,null,null,null,null,null,null,null,null,null,null,null,null,null,null,null,null,null,null,null,"OK",null,null,null,null,null,"DENAIN",35,{"$f":"AK5+AL4","v":116}]
[4,"ANNOEULLIN","CARPENTIER YOHANNE",null,null,"016914O",10,"R2",3.3587499999999997,null,"*",null,null,null,null,null,null,null,null,null,null,11,"N3",0.47674418604651159,null,"*",null,null,null,"OK",null,null,null,null,null,"DOUAI",38,154]
[5,"ANNOEULLIN","CAUX FREDERIC",null,null,"017026W",10,"R3",1.4099999999999997,null,"*",null,null,null,null,null,9,"R2",0.9887640449438202,null,"*",null,null,null,null,null,null,null,null,"OK",null,null,null,null,null,"DUNKERQUE",85,239]
[6,"ANNOEULLIN","CAUX GREGORY",null,null,"147265W",null,null,null,null,null,null,null,null,null,null,null,null,null,null,null,null,null,null,null,null,null,null,null,"OK",null,null,null,null,null,"ESTAIRES",13,252]
[7,"ANNOEULLIN","D HONDT BERTRAND",null,null,"143079B",null,null,null,null,null,null,null,null,null,null,null,null,null,null,null,null,null,null,null,null,null,null,null,"OK",null,null,null,null,null,"FACHES THUMESNIL",47,299]
[8,"ANNOEULLIN","DELCOURT ROBERT",null,null,"016873Z",null,null,null,null,null,null,null,null,null,null,null,null,null,null,null,null,null,null,null,null,null,null,null,"OK",null,null,null,null,null,"GRANDE-SYNTHE",16,315]
[9,"ANNOEULLIN","DELSOL PHILIPPE",null,null,"101151L",null,null,null,null,null,null,null,null,null,null,10,"N1",3.06,null,"*","13","N2",0.53600000000000003,null,1,null,null,null,"OK",null,null,null,null,null,"GRAVELINES",40,355]
[10,"ANNOEULLIN","DEROLEZ JEAN PIERRE",null,null,"101152M",null,null,null,null,null,null,null,null,null,null,null,null,null,null,null,"13","R1",0.30348837209302326,null,1,null,null,null,"OK",null,null,null,null,null,"HOUPLINES",21,376]
[11,"ANNOEULLIN","DONNEAU PHILIPPE",null,null,"138350E",13,"R4",1.0249999999999999,null,1,null,null,null,null,null,13,"R2",0.7078651685393258,null,1,null,null,null,null,null,null,null,null,"OK",null,null,null,null,null,"RONCHIN",91,467]
[12,"ANNOEULLIN","FLOURE STEPHANE",null,null,"147296E",null,null,null,null,null,null,null,null,null,null,null,null,null,null,null,null,null,null,null,null,null,null,null,"OK",null,null,null,null,null,"ST POL SUR MER",20,487]
[13,"ANNOEULLIN","FOURMAUX GERARD",null,null,"147122Q",null,null,null,null,null,null,null,null,null,null,null,null,null,null,null,null,null,null,null,null,null,null,null,"OK",null,null,null,null,null,"VILLENEUVE D ASCQ",52,539]
[14,"ANNOEULLIN","FOURMAUX PIERRE",null,null,"147121P",null,null,null,null,null,null,null,null,null,null,null,null,null,null,null,null,null,null,null,null,null,null,null,"OK"]
[15,"ANNOEULLIN","GEETS PATRICE",null,null,"126847T",10,"R3",1.69875,null,"*",null,null,null,null,null,null,null,null,null,null,null,null,null,null,null,null,null,null,"OK"]
[16,"ANNOEULLIN","GUILLEMANT ALEXANDRE",null,null,"016874A",null,null,null,null,null,null,null,null,null,null,null,null,null,null,null,null,null,null,null,null,null,null,null,"OK"]
[17,"ANNOEULLIN","GUILLEMANT DAVID",null,null,"016875B",null,null,null,null,null,null,null,null,null,null,8,"N3",2.0337078651685392,null,"*",8,"N2",0.54900000000000004,null,"*",null,null,null,"OK"]
[18,"ANNOEULLIN","GUILLEMANT JEAN MARC",null,null,"017025V",null,null,null,null,null,null,null,null,null,null,null,null,null,null,null,null,null,null,null,null,null,null,null,"OK"]
[19,"ANNOEULLIN","KERKAERT JEAN MARIE",null,null,"138351F",13,"R4",0.9375,null,1,null,null,null,null,null,13,"R2",0.5730337078651685,null,1,null,null,null,null,null,null,null,null,"OK"]
[20,"ANNOEULLIN","KRAUPNER JULES",null,null,"017012I",null,null,null,null,null,null,null,null,null,null,null,null,null,null,null,null,null,null,null,null,null,null,null,"OK"]
[21,"ANNOEULLIN","LHERMITTE CEDRIC",null,null,"016910K",10,"R1",4.9799999999999995,null,"*",null,null,null,null,null,8,"N3",1.8089887640449438,null,"*","13","N3",0.46162790697674422,null,1,null,null,null,"OK"]
[22,"ANNOEULLIN","LOTHE JEAN LUC",null,null,"016588A",null,null,null,null,null,null,null,null,null,null,null,null,null,null,null,null,null,null,null,null,null,null,null,"OK"]
[23,"ANNOEULLIN","MAILLE BERNARD",null,null,"016763T",10,"R2",2.3824999999999998,null,"*",null,null,null,null,null,null,null,null,null,null,9,"N3",0.39418604651162792,null,"*",null,null,null,"OK"]
[24,"ANNOEULLIN","MARTEL Jean-Pierre",null,null,null,null,null,null,null,null,null,null,null,null,null,9,"R2",0.75280898876404501,null,"*",null,null,null,null,null,null,null,null,"OK"]
[25,"ANNOEULLIN","MORANT Kévin",null,null,null,8,"R4",0.79499999999999993,null,"*",null,null,null,null,null,null,null,null,null,null,null,null,null,null,null,null,null,null,"OK"]
[26,"ANNOEULLIN","PREVOST JEAN CLAUDE",null,null,"016591D",null,null,null,null,null,null,null,null,null,null,null,null,null,null,null,null,null,null,null,null,null,null,null,"OK"]
[27,"ANNOEULLIN","RACARY Thibaut",null,null,"141510S",10,"R1",4.2699999999999996,null,"*",null,null,null,null,null,null,null,null,null,null,null,null,null,null,null,null,null,null,"OK"]
[28,"ANNOEULLIN","SAUVAGE Jean-Claude",null,null,"141511T",10,"R3",1.2949999999999999,null,"*",null,null,null,null,null,null,null,null,null,null,null,null,null,null,null,null,null,null,"OK"]
[29,"ANNOEULLIN","VALLART DIDIER",null,null,"145781Z",null,null,null,null,null,null,null,null,null,null,null,null,null,null,null,null,null,null,null,null,null,null,null,"OK"]
[30,"ANNOEULLIN","VANDAELE DANIEL",null,null,"102991F",null,null,null,null,null,null,null,null,null,null,null,null,null,null,null,null,null,null,null,null,null,null,null,"OK"]
[31,"ANNOEULLIN","VASSAL André",null,null,null,8,"R4",0.54125000000000001,null,"*",null,null,null,null,null,null,null,null,null,null,null,null,null,null,null,null,null,null,"OK"]
[32,"ANNOEULLIN","VERBEKEN GERARD",null,null,"141512U",null,null,null,null,null,null,null,null,null,null,null,null,null,null,null,null,null,null,null,null,null,null,null,"OK"]
[33,"ANNOEULLIN","VERPLANCKE JEAN PIERRE",null,null,"147295D",null,null,null,null,null,null,null,null,null,null,null,null,null,null,null,null,null,null,null,null,null,null,null,"OK"]
[34,"ANNOEULLIN","VINCENT GERARD",null,null,"141513V",null,null,null,null,null,null,null,null,null,null,null,null,null,null,null,null,null,null,null,null,null,null,null,"OK"]
[35,"ANNOEULLIN","ZEUDE Alain",null,null,"141514W",13,"R4",1.0374999999999999,null,1,null,null,null,null,null,13,"R2",0.6853932584269663,null,1,null,null,null,null,null,null,null,null,"OK"]
[36,"BRUAY SUR ESCAUT","BERNUS Florent",null,null,null,10,"R4",0.91374999999999995,null,"*",null,null,null,null,null,10,"R2",0.5617977528089888,null,"*",null,null,null,null,null,null,null,null,"OK"]
[37,"BRUAY SUR ESCAUT","BUONDELMONTE Antonio",null,null,"016719B",12,"R3",1.7649999999999999,null,"*",null,null,null,null,null,13,"R1",1.0112359550561798,null,1,"13","R1",0.30697674418604654,null,1,null,null,null,"OK"]
[38,"BRUAY SUR ESCAUT","BUONDELMONTE Nazario",null,null,"017134A",12,"R3",1.825,null,"*",null,null,null,null,null,13,"R1",1.2359550561797754,null,1,null,null,null,null,null,null,null,null,"OK"]
[39,"BRUAY SUR ESCAUT","CYTHERE Gérard",null,null,null,10,"R2",2.34,null,"*",null,null,null,null,null,9,"R1",1.1348314606741572,null,"*",8,"N3",0.36627906976744184,null,"*",null,null,null,"OK"]
[40,"BRUAY SUR ESCAUT","DELORY Gaston",null,null,null,null,null,null,null,null,null,null,null,null,null,null,null,null,null,null,9,"R1",0.31976744186046513,null,"*",null,null,null,"OK"]
[41,"BRUAY SUR ESCAUT","GOSTIAU Joris",null,null,null,10,"R3",2.0099999999999998,null,"*",null,null,null,null,null,null,null,null,null,null,null,null,null,null,null,null,null,null,"OK"]
[42,"BRUAY SUR ESCAUT","HENNEUSE Patrick",null,null,"016721D",null,null,null,null,null,null,null,null,null,null,null,null,null,null,null,8,"N2",0.52600000000000002,null,"*",null,null,null,"OK"]
[43,"BRUAY SUR ESCAUT","KOLODZIEJCZYK Thadée",null,null,null,9,"R4",1.01125,null,"*",null,null,null,null,null,null,null,null,null,null,null,null,null,null,null,null,null,null,"OK"]
[44,"BRUAY SUR ESCAUT","LEFEBVRE Jean-Pierre",null,null,null,null,null,null,null,null,null,null,null,null,null,8,"R2",0.5842696629213483,null,"*",null,null,null,null,null,null,null,null,"OK"]
[45,"BRUAY SUR ESCAUT","MAUPIN Patrick",null,null,null,9,"R1",4.4224999999999994,null,"*",8,"R1 42/2",3.4674999999999998,null,"*",10,"R1",1.7078651685393258,null,"*",null,null,null,null,null,null,null,null,"OK"]
[46,"BRUAY SUR ESCAUT","PORTIER Alexandre",null,null,"139644Y",13,"R4",0.96250000000000002,null,1,null,null,null,null,null,12,"R2",0.7303370786516854,null,"*",10,"R2",9.4186046511627916E-2,null,"*",null,null,null,"OK"]
[47,"BRUAY SUR ESCAUT","PORTIER Christophe",null,null,"139645Z",13,"N3",6.1624999999999996,null,1,13,"R1 42/2",2.625,null,1,13,"R1",1.595505617977528,null,1,"13","N3",0.51279069767441865,null,1,null,null,null,"OK"]
[48,"BRUAY SUR ESCAUT","RITROVATO Romuald",null,null,null,null,null,null,null,null,null,null,null,null,null,8,"R2",0.9101123595505618,null,"*",null,null,null,null,null,null,null,null,"OK"]
[49,"BRUAY SUR ESCAUT","ROUGE Jacques",null,null,null,8,"R2",2.8162500000000001,null,"*",8,"R1 42/2",2.4612500000000002,null,"*",null,null,null,null,null,null,null,null,null,null,null,null,null,"OK"]
[50,"BRUAY SUR ESCAUT","SAINT MAXENT Jérôme",null,null,null,12,"N3",9.2724999999999991,null,"*",null,null,null,null,null,null,null,null,null,null,12,"N1",0.72699999999999998,null,"*",null,null,null,"OK"]
[51,"BRUAY SUR ESCAUT","TURPIN Laurent",null,null,"127680U",13,"R3",1.9375,null,1,null,null,null,null,null,12,"R1",1.292134831460674,null,"*","13","N3",0.38720930232558143,null,1,null,null,null,"OK"]
[52,"BRUAY SUR ESCAUT","WISNIEWSKI Donald",null,null,"016725H",9,"R2",2.9274999999999998,null,"*",null,null,null,null,null,null,null,null,null,null,null,null,null,null,null,null,null,null,"OK"]
[53,"CAMBRAI","BOCQUET Grégoire",null,null,null,10,"R4",0.72999999999999987,null,"*",null,null,null,null,null,null,null,null,null,null,null,null,null,null,null,null,null,null,"OK"]
[54,"CAMBRAI","BRION Jean-Pierre",null,null,null,null,null,null,null,null,null,null,null,null,null,9,"R2",0.97752808988764039,null,"*",8,"R2",0.21395348837209302,null,"*",null,null,null,"OK"]
[55,"CAMBRAI","BURY Alain",null,null,"016732O",null,null,null,null,null,null,null,null,null,null,null,null,null,null,null,"13","N1",0.73299999999999998,null,1,null,null,null,"OK"]
[56,"CAMBRAI","DECLERCK Bruno",null,null,null,10,"R3",1.8499999999999999,null,"*",null,null,null,null,null,9,"R1",1.3820224719101124,null,"*",11,"N3",0.42790697674418604,null,"*",null,null,null,"OK"]
[57,"CAMBRAI","DELFOLIE Gérald",null,null,null,9,"R3",1.22875,null,"*",null,null,null,null,null,9,"R2",0.6966292134831461,null,"*",null,null,null,null,null,null,null,null,"OK"]
[58,"CAMBRAI","DESCHAMPS Bertrand",null,null,null,9,"R3",1.68875,null,"*",null,null,null,null,null,9,"R1",1.0224719101123596,null,"*",9,"R1",0.26976744186046514,null,"*",null,null,null,"OK"]
[59,"CAMBRAI","DRIGUET Arnaud",null,null,"016891R",9,"N3",6.4487499999999995,null,"*",null,null,null,null,null,8,"N3",1.9775280898876404,null,"*","13","N2",0.48199999999999998,null,1,null,null,null,"OK"]
[60,"CAMBRAI","DUHEN Florian",null,null,"121381N",10,"R2",3.6924999999999999,null,"*",null,null,null,null,null,10,"R1",1.4943820224719102,null,"*",9,"N3",0.45813953488372094,null,"*",null,null,null,"OK"]
[61,"CAMBRAI","DUMEZ Paul",null,null,null,9,"R3",1.41625,null,"*",null,null,null,null,null,null,null,null,null,null,null,null,null,null,null,null,null,null,"OK"]
[62,"CAMBRAI","HODIN Daniel",null,null,"016704M",13,"R1",4.0374999999999996,null,1,13,"N3 42/2",3.9374999999999996,null,1,13,"N3",2.2134831460674156,null,1,"13","N3",0.51860465116279075,null,1,null,null,null,"OK"]
[63,"CAMBRAI","ISKIW Paul",null,null,null,8,"R4",0.50249999999999995,null,"*",null,null,null,null,null,null,null,null,null,null,null,null,null,null,null,null,null,null,"OK"]
[64,"CAMBRAI","LEFORT Lucas",null,null,"147513Q",null,null,null,null,null,null,null,null,null,null,null,null,null,null,null,null,null,null,null,null,null,null,null,"OK"]
[65,"CAMBRAI","MARQUANT Jérôme",null,null,null,8,"R4",1.0812499999999998,null,"*",null,null,null,null,null,13,"R2",0.8764044943820225,null,1,8,"R1",0.29651162790697677,null,"*",null,null,null,"OK"]
[66,"CAMBRAI","MARTIN Daniel",null,null,null,11,"R3",1.3037499999999997,null,"*",null,null,null,null,null,10,"R2",0.77528089887640439,null,"*",null,null,null,null,null,null,null,null,"OK"]
[67,"CAMBRAI","MARTIN Ezechiel",null,null,null,10,"R4",0.97624999999999995,null,"*",null,null,null,null,null,10,"R2",0.5056179775280899,null,"*",null,null,null,null,null,null,null,null,"OK"]
[68,"CAMBRAI","NENON Francis",null,null,"021256O",null,null,null,null,null,13,"N3 42/2",5.8874999999999993,null,1,13,"N3",2.4606741573033708,null,1,"13","N2",0.5,null,1,null,null,null,"OK"]
[69,"CAMBRAI","NOWAKOWSKI Alexandre",null,null,"136020O",11,"N3",9.6387499999999999,null,"*",11,"N3 42/2",5.9674999999999994,null,"*",10,"N3",1.8539325842696628,null,"*","13","N3",0.34186046511627904,null,0,null,null,null,"OK"]
[70,"CAMBRAI","PAMART Alexis",null,null,null,9,"R4",0.97,null,"*",null,null,null,null,null,null,null,null,null,null,null,null,null,null,null,null,null,null,"OK"]
[71,"CAMBRAI","ROUSSEAU Bernard",null,null,"129055R",9,"R4",1.1487499999999999,null,"*",null,null,null,null,null,9,"R2",0.6853932584269663,null,"*","13","N3",0.41046511627906973,null,1,null,null,null,"OK"]
[72,"CAMBRAI","WAXIN Jean-Jacques",null,null,null,10,"R4",1.0037499999999999,null,"*",null,null,null,null,null,10,"R2",0.65168539325842689,null,"*",8,"R2",0.19767441860465118,null,"*",null,null,null,"OK"]
[73,"CHAPELLE ARMENTIERES","BOONE Raphaël",null,null,null,10,"R4",1.0174999999999998,null,"*",null,null,null,null,null,null,null,null,null,null,null,null,null,null,null,null,null,null,"OK"]
[74,"CHAPELLE ARMENTIERES","BOUQUET Laurent",null,null,null,null,null,null,null,null,8,"R1 42/2",2.585,null,"*",null,null,null,null,null,null,null,null,null,null,null,null,null,"OK"]
[75,"CHAPELLE ARMENTIERES","DEMEULNAERE Jean-Claude",null,null,null,10,"R4",0.79874999999999996,null,"*",null,null,null,null,null,null,null,null,null,null,null,null,null,null,null,null,null,null,"OK"]
[76,"CHAPELLE ARMENTIERES","HAZELAERE Francis",null,null,null,10,"R4",0.99375000000000002,null,"*",null,null,null,null,null,null,null,null,null,null,null,null,null,null,null,null,null,null,"OK"]
[77,"CHAPELLE ARMENTIERES","LEPLUS Alain",null,null,null,10,"R3",2.0574999999999997,null,"*",null,null,null,null,null,null,null,null,null,null,null,null,null,null,null,null,null,null,"OK"]
[78,"CHAPELLE ARMENTIERES","ROLAIN Serge",null,null,null,10,"R4",0.9375,null,"*",null,null,null,null,null,null,null,null,null,null,null,null,null,null,null,null,null,null,"OK"]
[79,"CHAPELLE ARMENTIERES","VANDIONANT Michel",null,null,null,null,null,null,null,null,null,null,null,null,null,null,null,null,null,null,9,"R2",0.17093023255813952,null,"*",null,null,null,"OK"]
[80,"DENAIN","BARNO Cassandre",null,null,"143081D",13,"R4",0.65,null,1,null,null,null,null,null,12,"R2",0.3820224719101124,null,"*",null,null,null,null,null,null,null,null,"OK"]
[81,"DENAIN","BOULANGER Steve",null,null,null,9,"R3",1.6912499999999999,null,"*",null,null,null,null,null,9,"R2",0.797752808988764,null,"*",9,"R1",0.29651162790697677,null,"*",null,null,null,"OK"]
[82,"DENAIN","COLLIEZ Jacques",null,null,null,11,"R3",1.79125,null,"*",null,null,null,null,null,10,"R1",1.1348314606741572,null,"*",9,"N3",0.40116279069767441,null,"*",null,null,null,"OK"]
[83,"DENAIN","COMPLET Leon",null,null,"147865Y",null,null,null,null,null,null,null,null,null,null,null,null,null,null,null,null,null,null,null,null,null,null,null,"OK"]
[84,"DENAIN","COPPIN Olivier",null,null,"136025T",11,"R4",0.69625000000000004,null,"*",null,null,null,null,null,12,"R2",0.64044943820224709,null,"*",8,"R2",0.1372093023255814,null,"*",null,null,null,"OK"]
[85,"DENAIN","COUWEZ Jean-Marc",null,null,null,10,"R2",2.1549999999999998,null,null,9,"R1 42/2",1.5712499999999998,null,"*",null,null,null,null,null,10,"R1",0.27674418604651163,null,"*",null,null,null,"OK"]
[86,"DENAIN","DEBRUILLE Anthony",null,null,"123789D",null,null,null,null,null,null,null,null,null,null,null,null,null,null,null,null,null,null,null,null,null,null,null,"OK"]
[87,"DENAIN","DELSAUT Claude",null,null,"147866Z",null,null,null,null,null,null,null,null,null,null,null,null,null,null,null,null,null,null,null,null,null,null,null,"OK"]
[88,"DENAIN","DRAPIER Francois",null,null,null,9,"R4",0.65125,null,"*",null,null,null,null,null,9,"R2",0.31460674157303375,null,"*",null,null,null,null,null,null,null,null,"OK"]
[89,"DENAIN","DRUART André",null,null,"017133Z",10,"R4",0.83625000000000005,null,"*",null,null,null,null,null,8,"R2",0.5730337078651685,null,"*",null,null,null,null,null,null,null,null,"OK"]
[90,"DENAIN","DUFOUR Patrick",null,null,null,9,"R4",0.8075,null,"*",null,null,null,null,null,null,null,null,null,null,null,null,null,null,null,null,null,null,"OK"]
[91,"DENAIN","ESCHENBRENNER Donovan",null,null,"129335L",13,"N1",14.73,null,1,13,"N2 47/2",4.79,null,0,13,"N1",2.86,null,1,"13","N2",0.46300000000000002,null,1,null,null,null,"OK"]
[92,"DENAIN","ESPALIEU Jean-François",null,null,"016708Q",11,"R2",2.3937499999999998,null,"*",null,null,null,null,null,12,"R1",1.4269662921348314,null,"*","13","N2",0.36699999999999999,null,0,null,null,null,"OK"]
[93,"DENAIN","FAILLE Michel",null,null,"147864X",null,null,null,null,null,null,null,null,null,null,null,null,null,null,null,null,null,null,null,null,null,null,null,"OK"]
[94,"DENAIN","FLEURANT Alexandre",null,null,"141329T",12,"R4",0.9425,null,"*",null,null,null,null,null,null,null,null,null,null,"13","R2",0.21860465116279071,null,1,null,null,null,"OK"]
[95,"DENAIN","FLEURANT Richard",null,null,"016709R",12,"R3",1.85625,null,"*",null,null,null,null,null,12,"R2",0.89887640449438211,null,"*",11,"N3",0.32558139534883723,null,null,null,null,null,"OK"]
[96,"DENAIN","FRANCQUEVILLE Raymond",null,null,"147862V",null,null,null,null,null,null,null,null,null,null,null,null,null,null,null,null,null,null,null,null,null,null,null,"OK"]
[97,"DENAIN","GHALEM Mehdi",null,null,null,8,"R4",0.43249999999999994,null,"*",null,null,null,null,null,null,null,null,null,null,null,null,null,null,null,null,null,null,"OK"]
[98,"DENAIN","HILAIRE Jimmy",null,null,"137050E",12,"R1",4.6825000000000001,null,"*",13,"N3 42/2",4.6500000000000004,null,1,12,"N3",1.7640449438202248,null,"*","13","N2",0.45700000000000002,null,1,null,null,null,"OK"]
[99,"DENAIN","HOCHART Jack",null,null,"138371Z",12,"R4",0.70874999999999988,null,"*",null,null,null,null,null,12,"R2",0.4831460674157303,null,"*",10,"R2",0.15232558139534885,null,"*",null,null,null,"OK"]
[100,"DENAIN","HOCHART James",null,null,"127686A",13,"R4",1.0374999999999999,null,1,null,null,null,null,null,12,"R2",0.6629213483146067,null,"*",8,"R2",0.18488372093023256,null,"*",null,null,null,"OK"]
[101,"DENAIN","HOCHART Jefferson",null,null,"123809X",13,"R3",2.0374999999999996,null,1,null,null,null,null,null,null,null,null,null,null,"13","N3",0.3906976744186047,null,1,null,null,null,"OK"]
[102,"DENAIN","HORNAIN Denis",null,null,"016710S",13,"R1",3.25,null,1,10,"N3 42/2",3.1624999999999996,null,null,13,"R1",1.6629213483146068,null,1,"13","N3",0.51744186046511631,null,1,null,null,null,"OK"]
[103,"DENAIN","JOURNET Fabrice",null,null,null,8,"R4",0.50375000000000003,null,"*",null,null,null,null,null,10,"R2",0.32584269662921345,null,"*",8,"R2",7.6744186046511634E-2,null,"*",null,null,null,"OK"]
[104,"DENAIN","LAGRENEZ Thomas",null,null,"147858Q",null,null,null,null,null,null,null,null,null,null,null,null,null,null,null,null,null,null,null,null,null,null,null,"OK"]
[105,"DENAIN","MARCHESSOUS Michaël",null,null,"128411X",13,"R3",1.3374999999999999,null,1,null,null,null,null,null,9,"R2",0.6741573033707865,null,"*",12,"R1",0.27093023255813953,null,"*",null,null,null,"OK"]
[106,"DENAIN","MARONNIER JEAN LUC",null,null,"129336M",13,"R4",0.57499999999999996,null,1,null,null,null,null,null,10,"R2",0.24719101123595505,null,"*",null,null,null,null,null,null,null,null,"OK"]
[107,"DENAIN","MATHIEU Jean",null,null,"147868B",null,null,null,null,null,null,null,null,null,null,null,null,null,null,null,null,null,null,null,null,null,null,null,"OK"]
[108,"DENAIN","NEUVILLE Daniel",null,null,"147859R",null,null,null,null,null,null,null,null,null,null,null,null,null,null,null,null,null,null,null,null,null,null,null,"OK"]
[109,"DENAIN","PAKOSZ Alain",null,null,"141516Y",null,null,null,null,null,null,null,null,null,null,null,null,null,null,null,null,null,null,null,null,null,null,null,"OK"]
[110,"DENAIN","PECAUT Bernard",null,null,"141515X",null,null,null,null,null,null,null,null,null,null,null,null,null,null,null,null,null,null,null,null,null,null,null,"OK"]
[111,"DENAIN","PORTIER Marcel",null,null,null,11,"R4",0.69125000000000003,null,"*",null,null,null,null,null,null,null,null,null,null,null,null,null,null,null,null,null,null,"OK"]
[112,"DENAIN","THERY Valentin",null,null,null,9,"R4",0.78249999999999997,null,"*",null,null,null,null,null,null,null,null,null,null,null,null,null,null,null,null,null,null,"OK"]
[113,"DENAIN","WAREZ Julien",null,null,null,11,"R4",0.69625000000000004,null,"*",null,null,null,null,null,null,null,null,null,null,null,null,null,null,null,null,null,null,"OK"]
[114,"DENAIN","ZIENTECK Lucien",null,null,"147867A",null,null,null,null,null,null,null,null,null,null,null,null,null,null,null,null,null,null,null,null,null,null,null,"OK"]
[115,"DOUAI","ANDRE Francois",null,null,null,10,"N3",4.5387499999999994,null,null,9,"N2 47/2",4.1929999999999996,null,null,9,"N3",2.0224719101123596,null,"*",10,"N2",0.496,null,"*",null,null,null,"OK"]
[116,"DOUAI","ARNAUD RENE",null,null,"143078A",12,"R4",0.77499999999999991,null,"*",null,null,null,null,null,null,null,null,null,null,null,null,null,null,null,null,null,null,"OK"]
[117,"DOUAI","BASTENIER Jean",null,null,"017360S",13,"R2",3.2874999999999996,null,1,13,"R1 42/2",2.9749999999999996,null,1,13,"R1",1.4943820224719102,null,1,11,"R1",0.3174418604651163,null,"*",null,null,null,"OK"]
[118,"DOUAI","BONNAILLIE Michel",null,null,"145639N",null,null,null,null,null,null,null,null,null,null,null,null,null,null,null,null,null,null,null,null,null,null,null,"OK"]
[119,"DOUAI","BRESSAC Guillaume",null,null,"112118G",13,"N3",7.7624999999999993,null,1,13,"N2 47/2",3.58,null,0,13,"N3",2.3595505617977528,null,1,"13","N2",0.45700000000000002,null,1,null,null,null,"OK"]
[120,"DOUAI","CARLIER Arnaud",null,null,null,9,"R4",0.49249999999999999,null,"*",null,null,null,null,null,null,null,null,null,null,null,null,null,null,null,null,null,null,"OK"]
[121,"DOUAI","CHEVALET Brigitte",null,null,"129313P",null,null,null,null,null,null,null,null,null,null,null,null,null,null,null,null,null,null,null,null,null,null,null,"OK"]
[122,"DOUAI","COQUEREL Patrick",null,null,"121357P",10,"R4",0.81499999999999995,null,"*",null,null,null,null,null,null,null,null,null,null,null,null,null,null,null,null,null,null,"OK"]
[123,"DOUAI","DELFORGE Jacques",null,null,null,10,"R3",1.8712500000000001,null,"*",null,null,null,null,null,null,null,null,null,null,null,null,null,null,null,null,null,null,"OK"]
[124,"DOUAI","DELFORGE Roger",null,null,"101131R",10,"R4",0.89249999999999996,null,"*",null,null,null,null,null,null,null,null,null,null,null,null,null,null,null,null,null,null,"OK"]
[125,"DOUAI","DELPLANQUE Fabien",null,null,"112734Y",null,null,null,null,null,null,null,null,null,null,13,"N1",2.69,null,1,"13","N2",0.51200000000000001,null,1,null,null,null,"OK"]
[126,"DOUAI","DEMAILLY Jean-Claude",null,null,"107611X",12,"R3",1.91,null,"*",null,null,null,null,null,null,null,null,null,null,null,null,null,null,null,null,null,null,"OK"]
[127,"DOUAI","DESBLEUMORTIERS André",null,null,"016530U",13,"R1",3.6124999999999998,null,0,13,"N3 42/2",3.2250000000000001,null,0,13,"R1",1.5280898876404496,null,1,"13","N3",0.42209302325581394,null,1,null,null,null,"OK"]
[128,"DOUAI","DESSAINT Pascal",null,null,"016747D",11,"Master",96.25,null,"*",13,"Masters 47/2",17.66,null,0,13,"Master",5.05,null,1,"13","N1",0.627,null,1,null,null,null,"OK"]
[129,"DOUAI","FLASQUE Claude",null,null,"116562E",12,"R3",1.3337499999999998,null,"*",null,null,null,null,null,null,null,null,null,null,"13","R1",0.28372093023255812,null,1,null,null,null,"OK"]
[130,"DOUAI","GRIFFON Daniel",null,null,"134137D",11,"R3",1.2512499999999998,null,"*",null,null,null,null,null,13,"R1",1,null,1,"13","R1",0.33372093023255811,null,1,null,null,null,"OK"]
[131,"DOUAI","HACHE Michel",null,null,"147117K",null,null,null,null,null,null,null,null,null,null,null,null,null,null,null,null,null,null,null,null,null,null,null,"OK"]
[132,"DOUAI","LASVAUX Guy",null,null,null,10,"R3",1.6287499999999999,null,"*",null,null,null,null,null,null,null,null,null,null,null,null,null,null,null,null,null,null,"OK"]
[133,"DOUAI","LASVAUX Jacky",null,null,"016571J",null,null,null,null,null,10,"N2 47/2",8.6289999999999996,null,"*",null,null,null,null,null,"13","N2",0.59599999999999997,null,1,null,null,null,"OK"]
[134,"DOUAI","LEGRAND Remy",null,null,"101134U",12,"R3",2.09,null,"*",null,null,null,null,null,10,"R1",1.3370786516853932,null,"*","13","N3",0.39302325581395353,null,1,null,null,null,"OK"]
[135,"DOUAI","LOISEAU Guillaume",null,null,"017016M",10,"N3",8.6937499999999996,null,"*",10,"N2 47/2",5.3929999999999998,null,"*",10,"N3",1.9775280898876404,null,"*",11,"N3",0.44534883720930235,null,"*",null,null,null,"OK"]
[136,"DOUAI","MAGUIRE Maurice",null,null,"136012G",10,"R4",0.75374999999999992,null,"*",null,null,null,null,null,null,null,null,null,null,null,null,null,null,null,null,null,null,"OK"]
[137,"DOUAI","MALET Pierre",null,null,"016572K",null,null,null,null,null,10,"N2 47/2",4.056,null,null,10,"N3",2.0561797752808988,null,"*","13","N2",0.41899999999999998,null,0,null,null,null,"OK"]
[138,"DOUAI","MASIERO André",null,null,"016573L",12,"R2",3.4775,null,"*",11,"R1 42/2",3.1874999999999996,null,"*",11,"R1",1.651685393258427,null,"*","13","N3",0.39418604651162792,null,1,null,null,null,"OK"]
[139,"DOUAI","MASIERO Lorenzo",null,null,"016951Z",10,"R2",3.3149999999999999,null,"*",10,"R1 42/2",2.3975,null,"*",10,"R1",1.4269662921348314,null,"*",10,"N3",0.38372093023255816,null,"*",null,null,null,"OK"]
[140,"DOUAI","MOCQ Michel",null,null,"121360S",11,"R4",0.86749999999999994,null,"*",null,null,null,null,null,null,null,null,null,null,null,null,null,null,null,null,null,null,"OK"]
[141,"DOUAI","MOTTON Christophe",null,null,"145640O",13,"R2",2.3374999999999999,null,1,null,null,null,null,null,13,"R1",1.4943820224719102,null,1,"13","N2",0.46100000000000002,null,1,null,null,null,"OK"]
[142,"DOUAI","NOE Mickael",null,null,"136013H",12,"R3",1.5074999999999998,null,"*",null,null,null,null,null,12,"R2",0.8651685393258427,null,"*","13","N3",0.45930232558139539,null,1,null,null,null,"OK"]
[143,"DOUAI","PROVENZANO Antonio",null,null,"016872Y",null,null,null,null,null,null,null,null,null,null,null,null,null,null,null,"13","N3",0.38255813953488377,null,1,null,null,null,"OK"]
[144,"DOUAI","RUZZENE MARIO",null,null,"148774L",null,null,null,null,null,null,null,null,null,null,null,null,null,null,null,null,null,null,null,null,null,null,null,"OK"]
[145,"DOUAI","SAUERBACK Eliane",null,null,"138361P",null,null,null,null,null,null,null,null,null,null,null,null,null,null,null,null,null,null,null,null,null,null,null,"OK"]
[146,"DOUAI","SAVARY Jean",null,null,"017023T",10,"R3",1.5049999999999999,null,"*",null,null,null,null,null,null,null,null,null,null,null,null,null,null,null,null,null,null,"OK"]
[147,"DOUAI","SEYNHAEVE BAUDOUIN",null,null,"148608F",null,null,null,null,null,null,null,null,null,null,null,null,null,null,null,null,null,null,null,null,null,null,null,"OK"]
[148,"DOUAI","SINTIVE Marcel",null,null,"017019P",null,null,null,null,null,null,null,null,null,null,null,null,null,null,null,null,null,null,null,null,null,null,null,"OK"]
[149,"DOUAI","STIEVET Guy",null,null,"138362Q",13,"R2",3.5124999999999997,null,1,13,"R1 42/2",2.2875000000000001,null,1,12,"R1",1.2471910112359552,null,"*","13","N3",0.48604651162790696,null,1,null,null,null,"OK"]
[150,"DOUAI","TOURNON Yves",null,null,"116595L",12,"R4",0.85750000000000004,null,"*",null,null,null,null,null,null,null,null,null,null,null,null,null,null,null,null,null,null,"OK"]
[151,"DOUAI","WANT David",null,null,null,8,"R4",1.0187499999999998,null,"*",null,null,null,null,null,null,null,null,null,null,null,null,null,null,null,null,null,null,"OK"]
[152,"DOUAI","ZAMYSLEWSKI Alain",null,null,"017022S",12,"R1",4.0837499999999993,null,"*",10,"N3 42/2",4.4249999999999998,null,"*",9,"N3",2.1235955056179776,null,"*",9,"N2",0.40200000000000002,null,null,null,null,null,"OK"]
[153,"DUNKERQUE","ALLART Sebastien",null,null,"139038Q",null,null,null,null,null,null,null,null,null,null,null,null,null,null,null,null,null,null,null,null,null,null,null,"OK"]
[154,"DUNKERQUE","AMPEN Laurent",null,null,"146962R",null,null,null,null,null,null,null,null,null,null,null,null,null,null,null,null,null,null,null,null,null,null,null,"OK"]
[155,"DUNKERQUE","AU Duong Tu",null,null,"133129J",13,"N3",6.125,null,1,13,"N3 42/2",3.5874999999999999,null,1,13,"R1",1.4382022471910112,null,1,null,null,null,null,null,null,null,null,"OK"]
[156,"DUNKERQUE","BERA Eric",null,null,"145534M",null,null,null,null,null,null,null,null,null,null,null,null,null,null,null,null,null,null,null,null,null,null,null,"OK"]
[157,"DUNKERQUE","BLANQUART Alain",null,null,"145533L",null,null,null,null,null,null,null,null,null,null,null,null,null,null,null,null,null,null,null,null,null,null,null,"OK"]
[158,"DUNKERQUE","BOUCLET Gilbert",null,null,"107671F",null,null,null,null,null,null,null,null,null,null,null,null,null,null,null,null,null,null,null,null,null,null,null,"OK"]
[159,"DUNKERQUE","BRIOIT Roger",null,null,"138376E",13,"R4",1.0125,null,1,null,null,null,null,null,13,"R2",0.7078651685393258,null,1,null,null,null,null,null,null,null,null,"OK"]
[160,"DUNKERQUE","BUNIET Steve",null,null,"145535N",null,null,null,null,null,null,null,null,null,null,null,null,null,null,null,null,null,null,null,null,null,null,null,"OK"]
[161,"DUNKERQUE","CALOONE René",null,null,null,8,"R3",1.2,null,"*",null,null,null,null,null,null,null,null,null,null,9,"R1",0.24883720930232558,null,null,null,null,null,"OK"]
[162,"DUNKERQUE","CARLIER Anthony",null,null,"145897L",null,null,null,null,null,null,null,null,null,null,null,null,null,null,null,null,null,null,null,null,null,null,null,"OK"]
[163,"DUNKERQUE","CARRU Bruno",null,null,null,8,"R4",1.0812499999999998,null,"*",null,null,null,null,null,10,"R2",0.8539325842696629,null,"*",11,"N3",0.29651162790697677,null,null,null,null,null,"OK"]
[164,"DUNKERQUE","CATARINO Thomas",null,null,"147945K",null,null,null,null,null,null,null,null,null,null,null,null,null,null,null,null,null,null,null,null,null,null,null,"OK"]
[165,"DUNKERQUE","CHRETIEN Maxence",null,null,"147939D",null,null,null,null,null,null,null,null,null,null,null,null,null,null,null,null,null,null,null,null,null,null,null,"OK"]
[166,"DUNKERQUE","COLLETTE Quentin",null,null,"147935Z",null,null,null,null,null,null,null,null,null,null,null,null,null,null,null,null,null,null,null,null,null,null,null,"OK"]
[167,"DUNKERQUE","COMAS Henri",null,null,null,11,"R2",2.6524999999999999,null,"*",9,"N3 42/2",3.5999999999999996,null,"*",null,null,null,null,null,null,null,null,null,null,null,null,null,"OK"]
[168,"DUNKERQUE","COMERE Eric",null,null,null,9,"R2",2.8912499999999999,null,"*",null,null,null,null,null,null,null,null,null,null,null,null,null,null,null,null,null,null,"OK"]
[169,"DUNKERQUE","COPPEY Christian",null,null,"122392K",null,null,null,null,null,null,null,null,null,null,null,null,null,null,null,9,"R1",0.29186046511627906,null,"*",null,null,null,"OK"]
[170,"DUNKERQUE","DEBOUDT Jean",null,null,"017264A",9,"R3",1.8299999999999998,null,"*",null,null,null,null,null,9,"R2",0.8202247191011236,null,"*",10,"N3",0.27790697674418602,null,null,null,null,null,"OK"]
[171,"DUNKERQUE","DEBUYSER Françis",null,null,"107672G",13,"R3",1.2874999999999999,null,"*",null,null,null,null,null,13,"R2",0.8651685393258427,null,"*",null,null,null,null,null,null,null,null,"OK"]
[172,"DUNKERQUE","DEBUYSER François",null,null,"121452G",9,"R1",4.0350000000000001,null,"*",9,"R1 42/2",3.4449999999999994,null,"*",null,null,null,null,null,12,"N2",0.41299999999999998,null,null,null,null,null,"OK"]
[173,"DUNKERQUE","DEKEISTER Jean pierre",null,null,"139728E",null,null,null,null,null,null,null,null,null,null,null,null,null,null,null,null,null,null,null,null,null,null,null,"OK"]
[174,"DUNKERQUE","DELLIENNE Sebastien",null,null,"145537P",null,null,null,null,null,null,null,null,null,null,null,null,null,null,null,null,null,null,null,null,null,null,null,"OK"]
[175,"DUNKERQUE","DESBONNETS Clémentine",null,null,null,10,"R4",0.67125000000000001,null,"*",null,null,null,null,null,9,"R2",0.32584269662921345,null,"*",null,null,null,null,null,null,null,null,"OK"]
[176,"DUNKERQUE","DESCHAMPS Alain",null,null,null,null,null,null,null,null,null,null,null,null,null,null,null,null,null,null,null,null,null,null,null,null,null,null,"OK"]
[177,"DUNKERQUE","DESCHODT André",null,null,"146977H",null,null,null,null,null,null,null,null,null,null,8,"R1",1.146067415730337,null,"*",null,null,null,null,null,null,null,null,"OK"]
[178,"DUNKERQUE","DESURMON Antoine",null,null,"145893H",null,null,null,null,null,null,null,null,null,null,null,null,null,null,null,null,null,null,null,null,null,null,null,"OK"]
[179,"DUNKERQUE","DESWELLE Jean-Pierre",null,null,"016654O",13,"N3",12.024999999999999,null,1,13,"N2 47/2",5.0599999999999996,null,1,13,"N3",2.3707865168539324,null,1,11,"N1",0.66300000000000003,null,"*",null,null,null,"OK"]
[180,"DUNKERQUE","DEVULDER Tanguy",null,null,"148055E",null,null,null,null,null,null,null,null,null,null,null,null,null,null,null,null,null,null,null,null,null,null,null,"OK"]
[181,"DUNKERQUE","DRYGLAS Jonathan",null,null,"145777V",null,null,null,null,null,null,null,null,null,null,null,null,null,null,null,null,null,null,null,null,null,null,null,"OK"]
[182,"DUNKERQUE","DUBREUIL Jerome",null,null,"146964T",null,null,null,null,null,null,null,null,null,null,null,null,null,null,null,null,null,null,null,null,null,null,null,"OK"]
[183,"DUNKERQUE","DUJARDIN Olivier",null,null,"146639Z",null,null,null,null,null,null,null,null,null,null,null,null,null,null,null,null,null,null,null,null,null,null,null,"OK"]
[184,"DUNKERQUE","FACKEURE Pierre",null,null,"016841T",null,null,null,null,null,null,null,null,null,null,null,null,null,null,null,null,null,null,null,null,null,null,null,"OK"]
[185,"DUNKERQUE","GHESQUIER Michael",null,null,"146965V",null,null,null,null,null,null,null,null,null,null,null,null,null,null,null,null,null,null,null,null,null,null,null,"OK"]
[186,"DUNKERQUE","GOSSART Jean yves",null,null,"017161B",13,"R1",4.5,null,1,null,null,null,null,null,null,null,null,null,null,"13","N3",0.43488372093023259,null,1,null,null,null,"OK"]
[187,"DUNKERQUE","GOURNAY Nicolas",null,null,"145545X",null,null,null,null,null,null,null,null,null,null,null,null,null,null,null,null,null,null,null,null,null,null,null,"OK"]
[188,"DUNKERQUE","GRZELCZAK Jacky",null,null,"146638Y",null,null,null,null,null,null,null,null,null,null,13,"N3",2.1685393258426964,null,1,null,null,null,null,null,null,null,null,"OK"]
[189,"DUNKERQUE","GUILBERT Régis",null,null,"116593J",13,"R3",1.4624999999999999,null,1,null,null,null,null,null,13,"R1",1,null,1,null,null,null,null,null,null,null,null,"OK"]
[190,"DUNKERQUE","HAN Jiacheng",null,null,"146966W",null,null,null,null,null,null,null,null,null,null,null,null,null,null,null,null,null,null,null,null,null,null,null,"OK"]
[191,"DUNKERQUE","HECQUET Daniel",null,null,"136113D",13,"R3",1.4999999999999998,null,1,null,null,null,null,null,13,"R2",0.8651685393258427,null,1,null,null,null,null,null,null,null,null,"OK"]
[192,"DUNKERQUE","HERVIOU Aude",null,null,"147942G",null,null,null,null,null,null,null,null,null,null,null,null,null,null,null,null,null,null,null,null,null,null,null,"OK"]
[193,"DUNKERQUE","HOCQUET Michel",null,null,"146967X",null,null,null,null,null,null,null,null,null,null,null,null,null,null,null,null,null,null,null,null,null,null,null,"OK"]
[194,"DUNKERQUE","HUBICHE Hans",null,null,"146963S",null,null,null,null,null,null,null,null,null,null,null,null,null,null,null,null,null,null,null,null,null,null,null,"OK"]
[195,"DUNKERQUE","KAYA Tugrul",null,null,"130654E",null,null,null,null,null,null,null,null,null,null,null,null,null,null,null,"13","N3",0.48023255813953486,null,1,null,null,null,"OK"]
[196,"DUNKERQUE","KULISZ Daniel",null,null,"145547Z",null,null,null,null,null,null,null,null,null,null,null,null,null,null,null,null,null,null,null,null,null,null,null,"OK"]
[197,"DUNKERQUE","KULISZ Remy",null,null,"145895J",null,null,null,null,null,null,null,null,null,null,null,null,null,null,null,null,null,null,null,null,null,null,null,"OK"]
[198,"DUNKERQUE","LAGATIE Clémence",null,null,null,10,"R4",0.82125000000000004,null,"*",null,null,null,null,null,null,null,null,null,null,null,null,null,null,null,null,null,null,"OK"]
[199,"DUNKERQUE","LANVIN Jean luc",null,null,"114979H",null,null,null,null,null,null,null,null,null,null,null,null,null,null,null,null,null,null,null,null,null,null,null,"OK"]
[200,"DUNKERQUE","LANVIN Yann",null,null,"145546Y",null,null,null,null,null,null,null,null,null,null,null,null,null,null,null,null,null,null,null,null,null,null,null,"OK"]
[201,"DUNKERQUE","LATRECHE Morgan",null,null,"147946L",null,null,null,null,null,null,null,null,null,null,null,null,null,null,null,null,null,null,null,null,null,null,null,"OK"]
[202,"DUNKERQUE","LECAT Henri",null,null,"016675J",null,null,null,null,null,null,null,null,null,null,12,"R2",0.93258426966292129,null,"*",null,null,null,null,null,null,null,null,"OK"]
[203,"DUNKERQUE","LEFEBVRE Vincent",null,null,"103007V",13,"N3",10.987499999999999,null,1,13,"N2 47/2",4.4000000000000004,null,0,13,"N1",2.31,null,1,null,null,null,null,null,null,null,null,"OK"]
[204,"DUNKERQUE","LEFORT Jacques",null,null,"016845X",null,null,null,null,null,null,null,null,null,null,null,null,null,null,null,null,null,null,null,null,null,null,null,"OK"]
[205,"DUNKERQUE","LEGOUILL Caroline",null,null,"148141Y",null,null,null,null,null,null,null,null,null,null,null,null,null,null,null,null,null,null,null,null,null,null,null,"OK"]
[206,"DUNKERQUE","LEPINOIS Nathan",null,null,"147196W",null,null,null,null,null,null,null,null,null,null,null,null,null,null,null,null,null,null,null,null,null,null,null,"OK"]
[207,"DUNKERQUE","LEPINOIS Patrice",null,null,"147959A",null,null,null,null,null,null,null,null,null,null,null,null,null,null,null,null,null,null,null,null,null,null,null,"OK"]
[208,"DUNKERQUE","LOISEL Manuel",null,null,"147936A",null,null,null,null,null,null,null,null,null,null,null,null,null,null,null,null,null,null,null,null,null,null,null,"OK"]
[209,"DUNKERQUE","LOOCK Julien",null,null,"111391H",null,null,null,null,null,null,null,null,null,null,null,null,null,null,null,null,null,null,null,null,null,null,null,"OK"]
[210,"DUNKERQUE","MARCHYLLIE Marcel",null,null,"016660U",null,null,null,null,null,null,null,null,null,null,null,null,null,null,null,null,null,null,null,null,null,null,null,"OK"]
[211,"DUNKERQUE","MARECHAL Francis",null,null,"016842U",8,"R3",1.6212499999999999,null,"*",null,null,null,null,null,null,null,null,null,null,null,null,null,null,null,null,null,null,"OK"]
[212,"DUNKERQUE","MORICE Michel",null,null,"107677L",null,null,null,null,null,null,null,null,null,null,null,null,null,null,null,null,null,null,null,null,null,null,null,"OK"]
[213,"DUNKERQUE","NEVEU Francois",null,null,"147197X",null,null,null,null,null,null,null,null,null,null,null,null,null,null,null,null,null,null,null,null,null,null,null,"OK"]
[214,"DUNKERQUE","PECQUEUX Emos",null,null,"146132M",null,null,null,null,null,null,null,null,null,null,null,null,null,null,null,null,null,null,null,null,null,null,null,"OK"]
[215,"DUNKERQUE","PECQUEUX Rene",null,null,"145539R",null,null,null,null,null,null,null,null,null,null,null,null,null,null,null,null,null,null,null,null,null,null,null,"OK"]
[216,"DUNKERQUE","PESSEMIER Kevin",null,null,"147938C",null,null,null,null,null,null,null,null,null,null,null,null,null,null,null,null,null,null,null,null,null,null,null,"OK"]
[217,"DUNKERQUE","POTIER Luka",null,null,"147944J",null,null,null,null,null,null,null,null,null,null,null,null,null,null,null,null,null,null,null,null,null,null,null,"OK"]
[218,"DUNKERQUE","POULEYN André",null,null,"016665Z",12,"R2",3.2199999999999998,null,"*",10,"R1 42/2",2.9849999999999999,null,"*",12,"R1",1.202247191011236,null,"*","13","N3",0.30930232558139537,null,0,null,null,null,"OK"]
[219,"DUNKERQUE","PRUGNIERES Valentyn",null,null,"145901P",null,null,null,null,null,null,null,null,null,null,null,null,null,null,null,null,null,null,null,null,null,null,null,"OK"]
[220,"DUNKERQUE","PRUVOST Charlotte",null,null,"146133N",null,null,null,null,null,null,null,null,null,null,null,null,null,null,null,null,null,null,null,null,null,null,null,"OK"]
[221,"DUNKERQUE","RABAS Georges",null,null,"016667B",null,null,null,null,null,null,null,null,null,null,null,null,null,null,null,null,null,null,null,null,null,null,null,"OK"]
[222,"DUNKERQUE","SEINGIER Jean-Claude",null,null,"016671F",12,"R2",3.0612499999999998,null,"*",8,"R1 42/2",3.1937500000000001,null,"*",12,"R1",1.4157303370786516,null,"*","13","N3",0.42674418604651165,null,1,null,null,null,"OK"]
[223,"DUNKERQUE","SKORDILIS Christo",null,null,"016782M",null,null,null,null,null,null,null,null,null,null,11,"R1",1.0674157303370786,null,"*","13","N3",0.3965116279069768,null,1,null,null,null,"OK"]
[224,"DUNKERQUE","SZLEZAK Sylvain",null,null,"148054D",null,null,null,null,null,null,null,null,null,null,null,null,null,null,null,null,null,null,null,null,null,null,null,"OK"]
[225,"DUNKERQUE","THOORIS Laurent",null,null,"023858Q",null,null,null,null,null,null,null,null,null,null,null,null,null,null,null,null,null,null,null,null,null,null,null,"OK"]
[226,"DUNKERQUE","TOUSSAINT Geraud",null,null,"145541T",null,null,null,null,null,null,null,null,null,null,null,null,null,null,null,null,null,null,null,null,null,null,null,"OK"]
[227,"DUNKERQUE","TURLUTTE Robert",null,null,"016783N",null,null,null,null,null,null,null,null,null,null,null,null,null,null,null,null,null,null,null,null,null,null,null,"OK"]
[228,"DUNKERQUE","VANBALINGHEM Philippe",null,null,"145542U",null,null,null,null,null,null,null,null,null,null,null,null,null,null,null,null,null,null,null,null,null,null,null,"OK"]
[229,"DUNKERQUE","VANDAELE Jean louis",null,null,"145543V",null,null,null,null,null,null,null,null,null,null,null,null,null,null,null,null,null,null,null,null,null,null,null,"OK"]
[230,"DUNKERQUE","VANDENBROUCQUE Michel",null,null,"016896W",null,null,null,null,null,null,null,null,null,null,null,null,null,null,null,null,null,null,null,null,null,null,null,"OK"]
[231,"DUNKERQUE","VANGHELUWEN Albert",null,null,"139727D",null,null,null,null,null,null,null,null,null,null,null,null,null,null,null,null,null,null,null,null,null,null,null,"OK"]
[232,"DUNKERQUE","VANOOSTEN Pierre",null,null,"016934I",null,null,null,null,null,null,null,null,null,null,null,null,null,null,null,null,null,null,null,null,null,null,null,"OK"]
[233,"DUNKERQUE","VIDAL Kevin",null,null,"147112E",null,null,null,null,null,null,null,null,null,null,null,null,null,null,null,null,null,null,null,null,null,null,null,"OK"]
[234,"DUNKERQUE","VISSE Loic",null,null,"148195G",null,null,null,null,null,null,null,null,null,null,null,null,null,null,null,null,null,null,null,null,null,null,null,"OK"]
[235,"DUNKERQUE","WAGON Mathieu",null,null,"144616E",null,null,null,null,null,null,null,null,null,null,null,null,null,null,null,null,null,null,null,null,null,null,null,"OK"]
[236,"DUNKERQUE","ZHOU Kaigang",null,null,"146961Q",null,null,null,null,null,null,null,null,null,null,null,null,null,null,null,null,null,null,null,null,null,null,null,"OK"]
[237,"DUNKERQUE","ZIEMIANIN Corentin",null,null,"148140X",null,null,null,null,null,null,null,null,null,null,null,null,null,null,null,null,null,null,null,null,null,null,null,"OK"]
[238,"ESTAIRES","CARLIER Yves André",null,null,"141359X",13,"R4",1,null,1,null,null,null,null,null,13,"R2",0.6853932584269663,null,1,null,null,null,null,null,null,null,null,"OK"]
[239,"ESTAIRES","CAULIER Patrick",null,null,"147861T",13,"R4",1.1749999999999998,null,1,null,null,null,null,null,null,null,null,null,null,null,null,null,null,null,null,null,null,"OK"]
[240,"ESTAIRES","CUNY Olivier",null,null,"141360Y",13,"R3",1.4874999999999998,null,1,null,null,null,null,null,13,"R2",0.89887640449438211,null,1,null,null,null,null,null,null,null,null,"OK"]
[241,"ESTAIRES","DELABARRE Yves",null,null,"147809M",13,"R3",1.7125000000000001,null,1,null,null,null,null,null,13,"R1",1.1235955056179776,null,1,null,null,null,null,null,null,null,null,"OK"]
[242,"ESTAIRES","DJELOUAH Geoffrey",null,null,"016921V",13,"R2",3.6999999999999997,null,1,null,null,null,null,null,13,"R1",1.202247191011236,null,1,null,null,null,null,null,null,null,null,"OK"]
[243,"ESTAIRES","GRYSON Dirk",null,null,"147433D",null,null,null,null,null,13,"R1 42/2",2.8624999999999998,null,1,null,null,null,null,null,null,null,null,null,null,null,null,null,"OK"]
[244,"ESTAIRES","HANNEDOUCHE Bernard",null,null,"141361Z",12,"R3",1.9312499999999999,null,"*",null,null,null,null,null,13,"R1",1.0898876404494382,null,1,null,null,null,null,null,null,null,null,"OK"]
[245,"ESTAIRES","HOUCKE Pierre",null,null,"145525D",12,"R4",0.96124999999999994,null,"*",null,null,null,null,null,13,"R2",0.6629213483146067,null,1,null,null,null,null,null,null,null,null,"OK"]
[246,"ESTAIRES","MARCHAL Thierry",null,null,"147434E",13,"R3",1.9,null,1,null,null,null,null,null,13,"R1",1.0898876404494382,null,1,null,null,null,null,null,null,null,null,"OK"]
[247,"ESTAIRES","MOURIKS Francine",null,null,"141362A",13,"R4",0.92499999999999993,null,1,null,null,null,null,null,13,"R2",0.5393258426966292,null,1,null,null,null,null,null,null,null,null,"OK"]
[248,"ESTAIRES","MOURIKS Michel",null,null,"141363B",null,null,null,null,null,null,null,null,null,null,null,null,null,null,null,null,null,null,null,null,null,null,null,"OK"]
[249,"ESTAIRES","REGNIER Patrick",null,null,"016865R",13,"N3",9.7249999999999996,null,1,12,"N3 42/2",4.3887499999999999,null,"*",12,"N3",1.9213483146067416,null,"*",null,null,null,null,null,null,null,null,"OK"]
[250,"ESTAIRES","WAEGEMACKER Alain",null,null,"141365D",13,"R1",4.3249999999999993,null,1,null,null,null,null,null,null,null,null,null,null,null,null,null,null,null,null,null,null,"OK"]
[251,"FACHES THUMESNIL","BASTENIER Medhi",null,null,null,9,"R2",2.5749999999999997,null,"*",null,null,null,null,null,9,"R1",1.0561797752808988,null,"*",9,"N3",0.36744186046511629,null,"*",null,null,null,"OK"]
[252,"FACHES THUMESNIL","BETREMIEUX Albert",null,null,null,10,"R3",1.9212499999999999,null,"*",null,null,null,null,null,10,"R1",1.101123595505618,null,"*",10,"R1",0.34418604651162787,null,"*",null,null,null,"OK"]
[253,"FACHES THUMESNIL","BLIN Jean",null,null,"016627N",10,"R3",1.2324999999999999,null,"*",null,null,null,null,null,null,null,null,null,null,null,null,null,null,null,null,null,null,"OK"]
[254,"FACHES THUMESNIL","BON Vincent",null,null,"017044O",null,null,null,null,null,null,null,null,null,null,null,null,null,null,null,null,null,null,null,null,null,null,null,"OK"]
[255,"FACHES THUMESNIL","BONTINCK Didier",null,null,null,11,"R3",1.9275,null,"*",null,null,null,null,null,11,"R1",1.0786516853932584,null,"*",11,"R1",0.35813953488372091,null,"*",null,null,null,"OK"]
[256,"FACHES THUMESNIL","BOULARD Daniel",null,null,"129049L",null,null,null,null,null,null,null,null,null,null,null,null,null,null,null,null,null,null,null,null,null,null,null,"OK"]
[257,"FACHES THUMESNIL","BOULET Serge",null,null,"130198Q",12,"R3",2.1687500000000002,null,"*",null,null,null,null,null,10,"R1",1.0449438202247192,null,"*",11,"N3",0.39302325581395353,null,"*",null,null,null,"OK"]
[258,"FACHES THUMESNIL","CAPPELLE Bernard",null,null,null,10,"R3",1.6587499999999999,null,"*",null,null,null,null,null,null,null,null,null,null,null,null,null,null,null,null,null,null,"OK"]
[259,"FACHES THUMESNIL","CASIER Jean",null,null,"017117J",null,null,null,null,null,null,null,null,null,null,null,null,null,null,null,null,null,null,null,null,null,null,null,"OK"]
[260,"FACHES THUMESNIL","CLYNCKE Jean-Jacques",null,null,"017038I",null,null,null,null,null,null,null,null,null,null,9,"R1",1.1348314606741572,null,"*","13","N3",0.35697674418604652,null,0,null,null,null,"OK"]
[261,"FACHES THUMESNIL","DAMBRUNE Claude",null,null,"133077J",13,"R3",1.9624999999999999,null,1,null,null,null,null,null,13,"R1",1.0112359550561798,null,1,null,null,null,null,null,null,null,null,"OK"]
[262,"FACHES THUMESNIL","DECONINCK Francky",null,null,"136119J",12,"N1",8.0380000000000003,null,null,11,"N2 47/2",5.3760000000000003,null,"*",null,null,null,null,null,null,null,null,null,null,null,null,null,"OK"]
[263,"FACHES THUMESNIL","DEGRAVE Franck",null,null,"017119L",13,"R3",1.7125000000000001,null,1,null,null,null,null,null,13,"R1",1.1348314606741572,null,1,"13","R1",0.31046511627906981,null,1,null,null,null,"OK"]
[264,"FACHES THUMESNIL","DELEFORGE Daniel",null,null,"017063H",null,null,null,null,null,null,null,null,null,null,8,"R1",1.0337078651685394,null,"*",null,null,null,null,null,null,null,null,"OK"]
[265,"FACHES THUMESNIL","DELVIGNE Romain",null,null,null,8,"R3",1.3925000000000001,null,"*",null,null,null,null,null,null,null,null,null,null,8,"R1",0.30930232558139537,null,"*",null,null,null,"OK"]
[266,"FACHES THUMESNIL","DELVILLE Serge",null,null,"017060E",null,null,null,null,null,null,null,null,null,null,null,null,null,null,null,"13","N2",0.42099999999999999,null,0,null,null,null,"OK"]
[267,"FACHES THUMESNIL","DERACHE Michel",null,null,"016592E",12,"R2",2.9399999999999995,null,"*",null,null,null,null,null,13,"R1",1.449438202247191,null,1,null,null,null,null,null,null,null,null,"OK"]
[268,"FACHES THUMESNIL","DESCRYVE Guy",null,null,"133079L",9,"R4",0.93374999999999997,null,"*",null,null,null,null,null,null,null,null,null,null,null,null,null,null,null,null,null,null,"OK"]
[269,"FACHES THUMESNIL","DESMETTRE Bruno",null,null,null,10,"R1",3.7262499999999998,null,null,10,"N3 42/2",4.2874999999999996,null,"*",10,"N3",2.2134831460674156,null,"*",12,"N2",0.48399999999999999,null,"*",null,null,null,"OK"]
[270,"FACHES THUMESNIL","DESURMONT Marc",null,null,null,11,"R3",1.7050000000000001,null,"*",null,null,null,null,null,9,"R1",1,null,"*",null,null,null,null,null,null,null,null,"OK"]
[271,"FACHES THUMESNIL","DORARD Steve",null,null,"015585L",13,"Master",59.04,null,1,12,"Masters 47/2",26.736000000000001,null,"*",12,"Master",5.97,null,"*","13","N1",0.77700000000000002,null,1,null,null,null,"OK"]
[272,"FACHES THUMESNIL","FAMCHON Hervé",null,null,null,null,null,null,null,null,11,"Masters 47/2",26.928999999999998,null,"*",null,null,null,null,null,null,null,null,null,null,null,null,null,"OK"]
[273,"FACHES THUMESNIL","FIQUET Patrick",null,null,"109119X",13,"R2",2.9125000000000001,null,1,null,null,null,null,null,13,"R1",1.1910112359550562,null,1,null,null,null,null,null,null,null,null,"OK"]
[274,"FACHES THUMESNIL","GAUQUIE Serge",null,null,"017116I",12,"N3",5.4024999999999999,null,null,13,"N3 42/2",4.5750000000000002,null,1,12,"N3",2.0674157303370788,null,"*","13","N3",0.40465116279069763,null,1,null,null,null,"OK"]
[275,"FACHES THUMESNIL","GHEVART Jean",null,null,"141508Q",null,null,null,null,null,null,null,null,null,null,null,null,null,null,null,null,null,null,null,null,null,null,null,"OK"]
[276,"FACHES THUMESNIL","HANSKENS Georges",null,null,null,null,null,null,null,null,null,null,null,null,null,null,null,null,null,null,9,"R2",0.20930232558139533,null,"*",null,null,null,"OK"]
[277,"FACHES THUMESNIL","HAUTEKER Gérard",null,null,"133026K",11,"R4",0.83750000000000002,null,"*",null,null,null,null,null,null,null,null,null,null,null,null,null,null,null,null,null,null,"OK"]
[278,"FACHES THUMESNIL","JACQUES Céline",null,null,"021080U",13,"R1",4.5,null,1,null,null,null,null,null,null,null,null,null,null,"13","N3",0.47790697674418603,null,1,null,null,null,"OK"]
[279,"FACHES THUMESNIL","LEZIS Alphonse",null,null,null,8,"R1",4.1849999999999996,null,"*",null,null,null,null,null,10,"R1",1.4382022471910112,null,"*",9,"N3",0.42441860465116277,null,"*",null,null,null,"OK"]
[280,"FACHES THUMESNIL","LORTHIOIR Jean-Luc",null,null,"129054Q",12,"R4",1.0799999999999998,null,"*",null,null,null,null,null,13,"R2",0.6629213483146067,null,1,"13","R1",0.22790697674418606,null,0,null,null,null,"OK"]
[281,"FACHES THUMESNIL","MANIEZ Pierre",null,null,"136120K",null,null,null,null,null,null,null,null,null,null,null,null,null,null,null,null,null,null,null,null,null,null,null,"OK"]
[282,"FACHES THUMESNIL","MATTA Daniel",null,null,"136121L",null,null,null,null,null,null,null,null,null,null,null,null,null,null,null,null,null,null,null,null,null,null,null,"OK"]
[283,"FACHES THUMESNIL","MOREL Albert",null,null,null,10,"R3",1.3587499999999999,null,"*",null,null,null,null,null,null,null,null,null,null,null,null,null,null,null,null,null,null,"OK"]
[284,"FACHES THUMESNIL","MOREL Emile",null,null,"017045P",12,"R4",1.0225,null,"*",null,null,null,null,null,null,null,null,null,null,null,null,null,null,null,null,null,null,"OK"]
[285,"FACHES THUMESNIL","PELHATE Gérard",null,null,null,12,"R2",3.01,null,"*",12,"R1 42/2",2.6612499999999999,null,"*",null,null,null,null,null,null,null,null,null,null,null,null,null,"OK"]
[286,"FACHES THUMESNIL","PETIT Joël",null,null,null,8,"R2",2.8174999999999999,null,"*",null,null,null,null,null,8,"R1",1.3707865168539326,null,"*",null,null,null,null,null,null,null,null,"OK"]
[287,"FACHES THUMESNIL","PETTINATO Giovanni",null,null,"016999V",13,"R1",3.2874999999999996,null,0,13,"R1 42/2",2.9125000000000001,null,1,13,"R1",1.5393258426966294,null,1,11,"R1",0.34534883720930232,null,"*",null,null,null,"OK"]
[288,"FACHES THUMESNIL","PLANCQ Francis",null,null,"110603Z",12,"R2",2.94875,null,"*",12,"R1 42/2",2.2824999999999998,null,"*",10,"R1",1.2696629213483144,null,"*",null,null,null,null,null,null,null,null,"OK"]
[289,"FACHES THUMESNIL","POIRIER Olivier",null,null,"133080M",10,"R3",1.2062499999999998,null,"*",null,null,null,null,null,10,"R2",0.6741573033707865,null,"*","13","R1",0.34534883720930232,null,1,null,null,null,"OK"]
[290,"FACHES THUMESNIL","POLARD Gilles",null,null,"017351J",12,"N3",6.8774999999999995,null,"*",13,"N3 42/2",5.4124999999999996,null,1,12,"R1",1.5505617977528088,null,"*","13","N3",0.35348837209302325,null,0,null,null,null,"OK"]
[291,"FACHES THUMESNIL","ROPITAL Jean marie",null,null,"138363R",null,null,null,null,null,null,null,null,null,null,null,null,null,null,null,null,null,null,null,null,null,null,null,"OK"]
[292,"FACHES THUMESNIL","SZYBOWICZ Laurent",null,null,"017252O",12,"N1",11.579000000000001,null,"*",13,"N2 47/2",6.44,null,1,11,"N3",2.0898876404494384,null,"*",8,"N3",0.47674418604651159,null,"*",null,null,null,"OK"]
[293,"FACHES THUMESNIL","THERY Jean P.",null,null,"143928S",12,"R3",1.6437499999999998,null,"*",null,null,null,null,null,null,null,null,null,null,11,"R1",0.30348837209302326,null,"*",null,null,null,"OK"]
[294,"FACHES THUMESNIL","TURBANT André",null,null,null,11,"R3",1.54375,null,"*",null,null,null,null,null,null,null,null,null,null,11,"R2",0.24651162790697675,null,"*",null,null,null,"OK"]
[295,"FACHES THUMESNIL","VANLERBERGHE Nicolas",null,null,null,11,"R1",4.0824999999999996,null,"*",8,"R1 42/2",3.4112499999999999,null,"*",11,"N3",1.752808988764045,null,"*",8,"N3",0.37674418604651166,null,"*",null,null,null,"OK"]
[296,"FACHES THUMESNIL","VERDIERE Pierre",null,null,"133081N",null,null,null,null,null,null,null,null,null,null,null,null,null,null,null,null,null,null,null,null,null,null,null,"OK"]
[297,"FACHES THUMESNIL","WALLART Jean-Charles",null,null,"017219H",8,"R3",1.99,null,"*",null,null,null,null,null,null,null,null,null,null,"13","N3",0.35813953488372091,null,0,null,null,null,"OK"]
[298,"GRANDE-SYNTHE","BLOT Daniel",null,null,"017160A",null,null,null,null,null,null,null,null,null,null,12,"R2",0.7415730337078652,null,"*",11,"R1",0.28837209302325584,null,"*",null,null,null,"OK"]
[299,"GRANDE-SYNTHE","CAPPELAERE Roger",null,null,"131434E",null,null,null,null,null,null,null,null,null,null,null,null,null,null,null,null,null,null,null,null,null,null,null,"OK"]
[300,"GRANDE-SYNTHE","DEGARDIN Bernard",null,null,"017153T",null,null,null,null,null,null,null,null,null,null,null,null,null,null,null,null,null,null,null,null,null,null,null,"OK"]
[301,"GRANDE-SYNTHE","DELPIERRE Alexandre",null,null,"137053H",12,"R2",2.2087499999999998,null,null,null,null,null,null,null,12,"R1",1.101123595505618,null,"*",12,"R1",0.35465116279069769,null,"*",null,null,null,"OK"]
[302,"GRANDE-SYNTHE","DIABI Gilles",null,null,"106347H",11,"R2",3.3462499999999999,null,"*",null,null,null,null,null,null,null,null,null,null,null,null,null,null,null,null,null,null,"OK"]
[303,"GRANDE-SYNTHE","LUBREZ Pierre",null,null,"017148O",13,"R3",1.625,null,1,null,null,null,null,null,13,"R1",0.9887640449438202,null,0,"13","R1",0.33372093023255811,null,1,null,null,null,"OK"]
[304,"GRANDE-SYNTHE","MASTALERZ Pascal",null,null,"103011Z",12,"R2",2.8462499999999999,null,"*",10,"R1 42/2",3.36625,null,"*",12,"R1",1.2134831460674158,null,"*",12,"N3",0.39883720930232563,null,"*",null,null,null,"OK"]
[305,"GRANDE-SYNTHE","MERVAILLE Jean",null,null,"103012A",12,"R3",1.80125,null,"*",null,null,null,null,null,12,"R1",1.2247191011235956,null,"*",12,"N3",0.50116279069767444,null,"*",null,null,null,"OK"]
[306,"GRANDE-SYNTHE","NORBERT Georges",null,null,"128883B",13,"R3",1.5499999999999998,null,1,null,null,null,null,null,13,"R2",0.92134831460674149,null,1,null,null,null,null,null,null,null,null,"OK"]
[307,"GRANDE-SYNTHE","PARANT Camille",null,null,"136925J",11,"R1",4.7549999999999999,null,"*",11,"N3 42/2",4.9775,null,"*",null,null,null,null,null,12,"N3",0.4755813953488372,null,"*",null,null,null,"OK"]
[308,"GRANDE-SYNTHE","POLLAERT Michel",null,null,"017397D",null,null,null,null,null,null,null,null,null,null,13,"R2",0.8539325842696629,null,1,"13","R1",0.33837209302325577,null,1,null,null,null,"OK"]
[309,"GRANDE-SYNTHE","SAINTIER Alain",null,null,"017152S",null,null,null,null,null,null,null,null,null,null,null,null,null,null,null,null,null,null,null,null,null,null,null,"OK"]
[310,"GRANDE-SYNTHE","VAN MELLAERTS Xavier",null,null,"130195N",null,null,null,null,null,null,null,null,null,null,null,null,null,null,null,null,null,null,null,null,null,null,null,"OK"]
[311,"GRANDE-SYNTHE","VANUXEM Jean",null,null,"017399F",8,"N3",6.86,null,"*",null,null,null,null,null,8,"R1",1.4157303370786516,null,"*",null,null,null,null,null,null,null,null,"OK"]
[312,"GRANDE-SYNTHE","VIENNE Michel",null,null,"017371D",13,"R3",1.4249999999999998,null,1,null,null,null,null,null,13,"R1",1.1123595505617978,null,1,"13","R1",0.25,null,1,null,null,null,"OK"]
[313,"GRANDE-SYNTHE","WYBAUW Daniel",null,null,"130196O",null,null,null,null,null,null,null,null,null,null,null,null,null,null,null,null,null,null,null,null,null,null,null,"OK"]
[314,"GRAVELINES","BARBET Bernard",null,null,"143075X",null,null,null,null,null,null,null,null,null,null,null,null,null,null,null,null,null,null,null,null,null,null,null,"OK"]
[315,"GRAVELINES","BEHAGUE André",null,null,"016678M",null,null,null,null,null,null,null,null,null,null,null,null,null,null,null,10,"N3",0.36511627906976746,null,"*",null,null,null,"OK"]
[316,"GRAVELINES","BRAZY Manuel",null,null,"124478Q",9,"R1",3.6049999999999995,null,null,8,"N3 42/2",3.6662499999999998,null,"*",12,"R1",1.6629213483146068,null,"*","13","N3",0.44651162790697674,null,1,null,null,null,"OK"]
[317,"GRAVELINES","BUYLE Stany",null,null,"121406M",null,null,null,null,null,null,null,null,null,null,null,null,null,null,null,"13","N1",0.85099999999999998,null,1,null,null,null,"OK"]
[318,"GRAVELINES","CAZALET Francis",null,null,null,null,null,null,null,null,null,null,null,null,null,10,"R1",1.3146067415730336,null,"*",12,"N3",0.48488372093023252,null,"*",null,null,null,"OK"]
[319,"GRAVELINES","DANIELS Ronald",null,null,"133107N",null,null,null,null,null,null,null,null,null,null,null,null,null,null,null,null,null,null,null,null,null,null,null,"OK"]
[320,"GRAVELINES","DAVID Isaïe",null,null,null,8,"R3",1.5599999999999998,null,"*",null,null,null,null,null,null,null,null,null,null,null,null,null,null,null,null,null,null,"OK"]
[321,"GRAVELINES","DEVOS Jackie",null,null,"121408O",13,"R1",4.1249999999999991,null,1,10,"N3 42/2",4.3125,null,"*",13,"N3",2.1348314606741572,null,1,"13","N2",0.49299999999999999,null,1,null,null,null,"OK"]
[322,"GRAVELINES","DEWULF Dominique",null,null,"116592I",13,"N3",5.1375000000000002,null,1,13,"N3 42/2",6.125,null,1,11,"N3",2.1348314606741572,null,"*","13","N3",0.52209302325581397,null,1,null,null,null,"OK"]
[323,"GRAVELINES","DIOT Antoine",null,null,"148002X",null,null,null,null,null,null,null,null,null,null,null,null,null,null,null,null,null,null,null,null,null,null,null,"OK"]
[324,"GRAVELINES","ESTERMANS Bernard",null,null,"138943Z",13,"R3",1.8624999999999998,null,1,null,null,null,null,null,13,"R1",1.2359550561797754,null,1,"13","N3",0.40348837209302324,null,1,null,null,null,"OK"]
[325,"GRAVELINES","FOURNIER André",null,null,null,12,"R4",0.74624999999999997,null,"*",null,null,null,null,null,12,"R2",0.550561797752809,null,"*",12,"R1",0.17906976744186046,null,null,null,null,null,"OK"]
[326,"GRAVELINES","GREMAIN Gino",null,null,"017226O",12,"N3",8.411249999999999,null,"*",12,"N2 47/2",4.3739999999999997,null,null,12,"N1",2.19,null,null,"13","N1",0.72899999999999998,null,1,null,null,null,"OK"]
[327,"GRAVELINES","GREMAIN Sophie",null,null,"133130K",9,"R4",0.72749999999999992,null,"*",null,null,null,null,null,9,"R2",0.4044943820224719,null,"*",8,"R2",0.13953488372093023,null,"*",null,null,null,"OK"]
[328,"GRAVELINES","GRISELIN Franc",null,null,"017056A",null,null,null,null,null,null,null,null,null,null,null,null,null,null,null,null,null,null,null,null,null,null,null,"OK"]
[329,"GRAVELINES","GRISELIN Philippe",null,null,"102981V",8,"N3",8.4074999999999989,null,"*",13,"N2 47/2",6.57,null,1,13,"N1",3.1,null,1,"13","N2",0.57799999999999996,null,1,null,null,null,"OK"]
[330,"GRAVELINES","HARLAY Hervé",null,null,"124479R",13,"R3",1.3,null,1,null,null,null,null,null,13,"R2",0.6741573033707865,null,1,null,null,null,null,null,null,null,null,"OK"]
[331,"GRAVELINES","HERREBRECHT Erian",null,null,"146733P",null,null,null,null,null,null,null,null,null,null,null,null,null,null,null,null,null,null,null,null,null,null,null,"OK"]
[332,"GRAVELINES","HERREBRECHT Thierry",null,null,"017224M",null,null,null,null,null,null,null,null,null,null,null,null,null,null,null,9,"N2",0.40699999999999997,null,null,null,null,null,"OK"]
[333,"GRAVELINES","KERKHOF Hervé",null,null,"136114E",13,"R1",4.7625000000000002,null,1,13,"N3 42/2",4.0874999999999995,null,1,13,"N3",2.1235955056179776,null,1,"13","N3",0.4383720930232558,null,1,null,null,null,"OK"]
[334,"GRAVELINES","LANGAGNE Roland",null,null,"017379L",null,null,null,null,null,null,null,null,null,null,null,null,null,null,null,null,null,null,null,null,null,null,null,"OK"]
[335,"GRAVELINES","LECLERCQ Alain",null,null,"017049T",null,null,null,null,null,null,null,null,null,null,null,null,null,null,null,"13","N3",0.49186046511627907,null,1,null,null,null,"OK"]
[336,"GRAVELINES","MANTEN Paul",null,null,"016680O",10,"R3",1.2374999999999998,null,"*",null,null,null,null,null,13,"R2",0.89887640449438211,null,1,"13","R1",0.26511627906976748,null,1,null,null,null,"OK"]
[337,"GRAVELINES","MERLEN Guy",null,null,"146011V",null,null,null,null,null,null,null,null,null,null,null,null,null,null,null,null,null,null,null,null,null,null,null,"OK"]
[338,"GRAVELINES","MERLEN Michel",null,null,"138942Y",null,null,null,null,null,null,null,null,null,null,null,null,null,null,null,null,null,null,null,null,null,null,null,"OK"]
[339,"GRAVELINES","MILLOIS Sylvain",null,null,"016681P",12,"R3",1.46875,null,"*",null,null,null,null,null,12,"R2",0.7303370786516854,null,"*","13","R2",0.21046511627906977,null,1,null,null,null,"OK"]
[340,"GRAVELINES","MONFLIER Francis",null,null,"124504Q",null,null,null,null,null,null,null,null,null,null,13,"R2",0.93258426966292129,null,1,"13","R1",0.33372093023255811,null,1,null,null,null,"OK"]
[341,"GRAVELINES","PARISIS Francis",null,null,"143076Y",12,"R4",0.71624999999999994,null,"*",null,null,null,null,null,13,"R2",0.4943820224719101,null,1,"13","R2",0.21395348837209302,null,1,null,null,null,"OK"]
[342,"GRAVELINES","PORTEBOIS Jacques",null,null,"017125R",null,null,null,null,null,null,null,null,null,null,null,null,null,null,null,null,null,null,null,null,null,null,null,"OK"]
[343,"GRAVELINES","ROELANTS Frederic",null,null,"016744A",null,null,null,null,null,null,null,null,null,null,null,null,null,null,null,"13","Master",0.95499999999999996,null,1,null,null,null,"OK"]
[344,"GRAVELINES","SPOORMANS Martin",null,null,"127718G",null,null,null,null,null,null,null,null,null,null,null,null,null,null,null,null,null,null,null,null,null,null,null,"OK"]
[345,"GRAVELINES","STOPIN Gilles",null,null,"016684S",null,null,null,null,null,null,null,null,null,null,null,null,null,null,null,"13","N1",0.749,null,1,null,null,null,"OK"]
[346,"GRAVELINES","VANDERSTRAETEN Marcel",null,null,"017124Q",null,null,null,null,null,null,null,null,null,null,null,null,null,null,null,null,null,null,null,null,null,null,null,"OK"]
[347,"GRAVELINES","VANDOMME Christophe",null,null,"147305P",null,null,null,null,null,null,null,null,null,null,null,null,null,null,null,null,null,null,null,null,null,null,null,"OK"]
[348,"GRAVELINES","VANUXEM Jerome",null,null,"016993P",null,null,null,null,null,12,"N2 47/2",5.125,null,"*",12,"N1",3.21,null,"*",10,"N1",0.74099999999999999,null,"*",null,null,null,"OK"]
[349,"GRAVELINES","VEREECQUE Ludovic",null,null,"017231T",10,"R2",3.0137499999999999,null,"*",10,"R1 42/2",2.4724999999999997,null,"*",10,"R1",1.6292134831460674,null,"*",9,"N3",0.34651162790697676,null,null,null,null,null,"OK"]
[350,"GRAVELINES","VERMERSCH Francis",null,null,"016958G",12,"N1",15.935,null,"*",null,null,null,null,null,11,"N1",2.77,null,"*",10,"N1",0.502,null,null,null,null,null,"OK"]
[351,"GRAVELINES","VITSE Louis",null,null,"017048S",8,"R1",4.5949999999999998,null,"*",8,"R1 42/2",3.2924999999999995,null,"*",null,null,null,null,null,null,null,null,null,null,null,null,null,"OK"]
[352,"GRAVELINES","VITSE Marc",null,null,"145531J",null,null,null,null,null,null,null,null,null,null,null,null,null,null,null,"13","N2",0.505,null,1,null,null,null,"OK"]
[353,"GRAVELINES","WASYLYSZYN Jean-Pierre",null,null,"016685T",13,"R3",1.1625000000000001,null,0,null,null,null,null,null,13,"R1",0.8764044943820225,null,0,"13","R1",0.23023255813953489,null,0,null,null,null,"OK"]
[354,"HOUPLINES","AUREAU Alain",null,null,null,8,"R3",1.5999999999999999,null,"*",null,null,null,null,null,8,"R2",0.8539325842696629,null,"*",null,null,null,null,null,null,null,null,"OK"]
[355,"HOUPLINES","BERTELOOT Philippe",null,null,"017058C",13,"R3",1.7499999999999998,null,1,null,null,null,null,null,11,"R1",1.2134831460674158,null,"*",null,null,null,null,null,null,null,null,"OK"]
[356,"HOUPLINES","DECLERCQ Bernard",null,null,null,11,"R3",1.2974999999999999,null,"*",null,null,null,null,null,10,"R2",0.93258426966292129,null,"*",10,"R2",0.24302325581395348,null,"*",null,null,null,"OK"]
[357,"HOUPLINES","DELVALLE Francis",null,null,"017101T",null,null,null,null,null,null,null,null,null,null,null,null,null,null,null,null,null,null,null,null,null,null,null,"OK"]
[358,"HOUPLINES","DOZIER Francis",null,null,null,11,"R4",1.08375,null,"*",null,null,null,null,null,11,"R2",0.61797752808988771,null,"*",null,null,null,null,null,null,null,null,"OK"]
[359,"HOUPLINES","DRUELLE David",null,null,null,10,"R4",1.1637500000000001,null,"*",null,null,null,null,null,null,null,null,null,null,null,null,null,null,null,null,null,null,"OK"]
[360,"HOUPLINES","DUFOUR Eric",null,null,"016854G",12,"R2",3.5262500000000001,null,"*",10,"N3 42/2",5.0162499999999994,null,"*",9,"R1",1.6404494382022472,null,"*",null,null,null,null,null,null,null,null,"OK"]
[361,"HOUPLINES","LINARES Roberto",null,null,null,8,"R3",1.9375,null,"*",null,null,null,null,null,null,null,null,null,null,null,null,null,null,null,null,null,null,"OK"]
[362,"HOUPLINES","MASO STEPHANE",null,null,null,12,"R3",1.4037499999999998,null,"*",null,null,null,null,null,null,null,null,null,null,9,"R1",0.25,null,"*",null,null,null,"OK"]
[363,"HOUPLINES","PILATE Bernard",null,null,null,10,"R3",1.7237499999999999,null,"*",null,null,null,null,null,null,null,null,null,null,null,null,null,null,null,null,null,null,"OK"]
[364,"HOUPLINES","QUESQUE Joel",null,null,null,null,null,null,null,null,null,null,null,null,null,null,null,null,null,null,9,"R1",0.26976744186046514,null,"*",null,null,null,"OK"]
[365,"HOUPLINES","QUETEL Hervé",null,null,"017031B",13,"R3",1.575,null,1,10,"R1 42/2",1.8374999999999999,null,"*",13,"R2",0.96629213483146059,null,1,"13","R1",0.3116279069767442,null,1,null,null,null,"OK"]
[366,"HOUPLINES","RAMOS José",null,null,null,11,"N3",6.1224999999999996,null,"*",8,"N2 47/2",5.5650000000000004,null,"*",10,"N3",2.5617977528089884,null,"*",null,null,null,null,null,null,null,null,"OK"]
[367,"HOUPLINES","THIEULLET Stéphane",null,null,"121434O",13,"R4",1.0374999999999999,null,1,null,null,null,null,null,11,"R1",1.0449438202247192,null,"*","13","R1",0.2930232558139535,null,1,null,null,null,"OK"]
[368,"HOUPLINES","TURBIEZ Pascal",null,null,null,8,"R4",1.0762499999999999,null,"*",null,null,null,null,null,9,"R2",0.5168539325842697,null,"*",null,null,null,null,null,null,null,null,"OK"]
[369,"HOUPLINES","VANDENDRIESSCHE Frédéric",null,null,"136019N",13,"R3",1.2124999999999999,null,1,null,null,null,null,null,null,null,null,null,null,10,"N3",0.36627906976744184,null,"*",null,null,null,"OK"]
[370,"HOUPLINES","VANHOUTTE Laurent",null,null,"124446K",9,"R4",0.76124999999999998,null,"*",null,null,null,null,null,null,null,null,null,null,null,null,null,null,null,null,null,null,"OK"]
[371,"HOUPLINES","VANKELST Philippe",null,null,null,10,"R4",0.8125,null,"*",null,null,null,null,null,null,null,null,null,null,null,null,null,null,null,null,null,null,"OK"]
[372,"HOUPLINES","VANTHOURNOUT Pascal",null,null,"016608U",13,"R3",2.1624999999999996,null,1,null,null,null,null,null,12,"R1",1.292134831460674,null,"*",10,"N3",0.36499999999999999,null,"*",null,null,null,"OK"]
[373,"HOUPLINES","WACQUET Paul",null,null,"016857J",13,"R3",1.7874999999999999,null,1,null,null,null,null,null,11,"R1",1.0898876404494382,null,"*",10,"N3",0.40581395348837207,null,"*",null,null,null,"OK"]
[374,"HOUPLINES","WILLEM Loïc",null,null,"124427R",8,"R3",1.6937499999999999,null,"*",null,null,null,null,null,8,"R1",1.0224719101123596,null,"*",null,null,null,null,null,null,null,null,"OK"]
[375,"RONCHIN","ALLORGE Roger",null,null,"017071P",null,null,null,null,null,null,null,null,null,null,null,null,null,null,null,null,null,null,null,null,null,null,null,"OK"]
[376,"RONCHIN","BARATTE Jean pierre",null,null,"146749F",null,null,null,null,null,null,null,null,null,null,null,null,null,null,null,null,null,null,null,null,null,null,null,"OK"]
[377,"RONCHIN","BEAUVOIS Dominique",null,null,"016626M",null,null,null,null,null,null,null,null,null,null,null,null,null,null,null,null,null,null,null,null,null,null,null,"OK"]
[378,"RONCHIN","BELLENS Antoine",null,null,"131071F",13,"R4",0.83750000000000002,null,1,null,null,null,null,null,null,null,null,null,null,null,null,null,null,null,null,null,null,"OK"]
[379,"RONCHIN","BELLENS Aurore",null,null,"114155P",13,"R2",3.3374999999999999,null,1,null,null,null,null,null,12,"R1",1.2471910112359552,null,"*",11,"R2",0.18837209302325583,null,"*",null,null,null,"OK"]
[380,"RONCHIN","BELLENS Fabrice",null,null,"016955D",13,"R2",3.0874999999999999,null,1,null,null,null,null,null,13,"R1",1.5617977528089886,null,1,"13","R1",0.28604651162790695,null,1,null,null,null,"OK"]
[381,"RONCHIN","BELLENS Laurence",null,null,"121445Z",13,"R4",0.39999999999999997,null,1,null,null,null,null,null,null,null,null,null,null,null,null,null,null,null,null,null,null,"OK"]
[382,"RONCHIN","BERRIER Jean-Pierre",null,null,"129051N",13,"N1",12.8,null,1,13,"N2 47/2",6.75,null,1,11,"N1",2.38,null,"*","13","N2",0.45900000000000002,null,1,null,null,null,"OK"]
[383,"RONCHIN","BOURDEAUDUCQ Rose marie",null,null,"146464G",null,null,null,null,null,null,null,null,null,null,null,null,null,null,null,null,null,null,null,null,null,null,null,"OK"]
[384,"RONCHIN","BOUREL Alfred",null,null,"121447B",null,null,null,null,null,null,null,null,null,null,null,null,null,null,null,null,null,null,null,null,null,null,null,"OK"]
[385,"RONCHIN","BROUX Jean marc",null,null,"110480G",null,null,null,null,null,null,null,null,null,null,null,null,null,null,null,null,null,null,null,null,null,null,null,"OK"]
[386,"RONCHIN","BRUNNEVALLE Jean-pierre",null,null,"143930U",null,null,null,null,null,null,null,null,null,null,null,null,null,null,null,"13","R1",0.21511627906976744,null,0,null,null,null,"OK"]
[387,"RONCHIN","CALLEWAERT Alexis",null,null,"136140E",null,null,null,null,null,null,null,null,null,null,null,null,null,null,null,null,null,null,null,null,null,null,null,"OK"]
[388,"RONCHIN","CARDINAS David",null,null,"147255K",null,null,null,null,null,null,null,null,null,null,null,null,null,null,null,null,null,null,null,null,null,null,null,"OK"]
[389,"RONCHIN","CARON Antony",null,null,"133085R",11,"R2",2.75,null,"*",null,null,null,null,null,null,null,null,null,null,"13","N2",0.46100000000000002,null,1,null,null,null,"OK"]
[390,"RONCHIN","CARON Doriane",null,null,"133279D",8,"R4",0.28999999999999998,null,"*",null,null,null,null,null,null,null,null,null,null,null,null,null,null,null,null,null,null,"OK"]
[391,"RONCHIN","CARTIGNY Jean louis",null,null,"016897X",null,null,null,null,null,null,null,null,null,null,null,null,null,null,null,null,null,null,null,null,null,null,null,"OK"]
[392,"RONCHIN","CHARVOZ Ludovic",null,null,"141340E",12,"R4",1.1312499999999999,null,"*",null,null,null,null,null,null,null,null,null,null,null,null,null,null,null,null,null,null,"OK"]
[393,"RONCHIN","DA SILVA Michel",null,null,"102975P",13,"R3",1.5249999999999999,null,1,null,null,null,null,null,9,"R1",1.0561797752808988,null,"*",11,"N3",0.36744186046511629,null,"*",null,null,null,"OK"]
[394,"RONCHIN","DE MUYNCK Daniel",null,null,null,11,"R4",1.1074999999999999,null,"*",null,null,null,null,null,null,null,null,null,null,null,null,null,null,null,null,null,null,"OK"]
[395,"RONCHIN","DECLERCQ Didier",null,null,"133148C",null,null,null,null,null,null,null,null,null,null,null,null,null,null,null,null,null,null,null,null,null,null,null,"OK"]
[396,"RONCHIN","DEGUERMONT Mickael",null,null,"143931V",null,null,null,null,null,null,null,null,null,null,null,null,null,null,null,null,null,null,null,null,null,null,null,"OK"]
[397,"RONCHIN","DELGRANGE Michel",null,null,"124458W",13,"R2",2.8749999999999996,null,1,null,null,null,null,null,null,null,null,null,null,null,null,null,null,null,null,null,null,"OK"]
[398,"RONCHIN","DELGRANGE René",null,null,"016629P",13,"R4",0.95,null,1,null,null,null,null,null,13,"R2",0.47191011235955055,null,1,null,null,null,null,null,null,null,null,"OK"]
[399,"RONCHIN","DEROUCK Julien",null,null,null,10,"R4",0.44999999999999996,null,"*",null,null,null,null,null,null,null,null,null,null,null,null,null,null,null,null,null,null,"OK"]
[400,"RONCHIN","DERVEAUX Paul",null,null,null,null,null,null,null,null,null,null,null,null,null,8,"R2",0.6067415730337079,null,"*",8,"R2",0.17093023255813952,null,"*",null,null,null,"OK"]
[401,"RONCHIN","DJOUBRI Brahim",null,null,"016566E",null,null,null,null,null,13,"Masters 47/2",31.26,null,1,13,"Master",4.95,null,0,"13","N1",0.65400000000000003,null,1,null,null,null,"OK"]
[402,"RONCHIN","DURIEUX Jeremy",null,null,"136796K",null,null,null,null,null,null,null,null,null,null,null,null,null,null,null,null,null,null,null,null,null,null,null,"OK"]
[403,"RONCHIN","DURIN Rene",null,null,"016930E",null,null,null,null,null,null,null,null,null,null,null,null,null,null,null,null,null,null,null,null,null,null,null,"OK"]
[404,"RONCHIN","DUTOIT Etienne",null,null,"136125P",null,null,null,null,null,null,null,null,null,null,null,null,null,null,null,null,null,null,null,null,null,null,null,"OK"]
[405,"RONCHIN","FERREIRA Jean claude",null,null,"136126Q",null,null,null,null,null,null,null,null,null,null,null,null,null,null,null,null,null,null,null,null,null,null,null,"OK"]
[406,"RONCHIN","FIEVET Baptiste",null,null,"145784C",null,null,null,null,null,null,null,null,null,null,null,null,null,null,null,null,null,null,null,null,null,null,null,"OK"]
[407,"RONCHIN","FIEVET Paul",null,null,"145785D",null,null,null,null,null,null,null,null,null,null,null,null,null,null,null,null,null,null,null,null,null,null,null,"OK"]
[408,"RONCHIN","FIEVET Thierry",null,null,"145783B",null,null,null,null,null,null,null,null,null,null,null,null,null,null,null,null,null,null,null,null,null,null,null,"OK"]
[409,"RONCHIN","FLORENT Bernard",null,null,"016852E",13,"R2",3.2124999999999995,null,1,13,"R1 42/2",2.7,null,1,12,"R1",1.1797752808988764,null,"*","13","R1",0.34302325581395349,null,1,null,null,null,"OK"]
[410,"RONCHIN","FLORENT Jean-François",null,null,"016853F",13,"Master",72.72,null,1,13,"Masters 47/2",37.47,null,1,13,"Master",6.64,null,1,"13","N1",0.67800000000000005,null,1,null,null,null,"OK"]
[411,"RONCHIN","FLORENT Julien",null,null,"017114G",13,"Master",33.33,null,1,13,"N1 47/2",13.91,null,1,12,"N1",2.89,null,"*","13","N2",0.51100000000000001,null,1,null,null,null,"OK"]
[412,"RONCHIN","FLORENT Sylvain",null,null,"147035W",null,null,null,null,null,null,null,null,null,null,null,null,null,null,null,null,null,null,null,null,null,null,null,"OK"]
[413,"RONCHIN","FLORENTIN Guy",null,null,"013131B",null,null,null,null,null,null,null,null,null,null,null,null,null,null,null,null,null,null,null,null,null,null,null,"OK"]
[414,"RONCHIN","FLORENTIN Martine",null,null,"017139F",11,"R2",2.3624999999999998,null,"*",null,null,null,null,null,13,"R2",0.92134831460674149,null,1,null,null,null,null,null,null,null,null,"OK"]
[415,"RONCHIN","FORZY Jean louis",null,null,"102988C",null,null,null,null,null,null,null,null,null,null,null,null,null,null,null,null,null,null,null,null,null,null,null,"OK"]
[416,"RONCHIN","FREVILLE PASCAL",null,null,"124452Q",13,"N1",14,null,1,null,null,null,null,null,null,null,null,null,null,null,null,null,null,null,null,null,null,"OK"]
[417,"RONCHIN","GEVAS Jacques",null,null,"121441V",10,"R3",1.3387499999999999,null,"*",null,null,null,null,null,12,"R2",0.89887640449438211,null,"*",null,null,null,null,null,null,null,null,"OK"]
[418,"RONCHIN","GODEFROIDT Michel",null,null,"016859L",13,"R3",1.5374999999999999,null,1,null,null,null,null,null,13,"R1",1.3146067415730336,null,1,"13","R1",0.33139534883720928,null,1,null,null,null,"OK"]
[419,"RONCHIN","GUIRAUD Jean-Pierre",null,null,"016956E",null,null,null,null,null,null,null,null,null,null,null,null,null,null,null,8,"N3",0.45930232558139539,null,"*",null,null,null,"OK"]
[420,"RONCHIN","JACOB Franck",null,null,"141521D",null,null,null,null,null,null,null,null,null,null,null,null,null,null,null,null,null,null,null,null,null,null,null,"OK"]
[421,"RONCHIN","LEFRANC Christian",null,null,"141801X",11,"R2",2.6574999999999998,null,"*",null,null,null,null,null,null,null,null,null,null,null,null,null,null,null,null,null,null,"OK"]
[422,"RONCHIN","LESAGE Thierry",null,null,null,8,"R4",0.97375,null,"*",null,null,null,null,null,8,"R2",0.65168539325842689,null,"*",null,null,null,null,null,null,null,null,"OK"]
[423,"RONCHIN","LEVEQUE Daniel",null,null,"016777H",13,"N3",9.5749999999999993,null,1,13,"N2 47/2",5,null,1,13,"N3",1.9662921348314606,null,1,"13","N3",0.37674418604651166,null,1,null,null,null,"OK"]
[424,"RONCHIN","MAC FARLANE Jacques",null,null,"016635V",10,"R2",2.9937499999999999,null,"*",null,null,null,null,null,9,"R1",1.3146067415730336,null,"*",9,"N3",0.45930232558139539,null,"*",null,null,null,"OK"]
[425,"RONCHIN","MAHELLE Guillaume",null,null,"017243F",13,"R3",1.4249999999999998,null,1,null,null,null,null,null,13,"R2",0.62921348314606751,null,1,null,null,null,null,null,null,null,null,"OK"]
[426,"RONCHIN","MARIAPOULE Franck",null,null,"138713D",null,null,null,null,null,null,null,null,null,null,null,null,null,null,null,null,null,null,null,null,null,null,null,"OK"]
[427,"RONCHIN","MARTEL Franck",null,null,"102989D",13,"R2",3.7624999999999997,null,1,null,null,null,null,null,null,null,null,null,null,null,null,null,null,null,null,null,null,"OK"]
[428,"RONCHIN","MASQUELIER Ludovic",null,null,"141345J",12,"R3",1.4137499999999998,null,"*",null,null,null,null,null,null,null,null,null,null,null,null,null,null,null,null,null,null,"OK"]
[429,"RONCHIN","MASSE Marc",null,null,"016636W",null,null,null,null,null,null,null,null,null,null,null,null,null,null,null,null,null,null,null,null,null,null,null,"OK"]
[430,"RONCHIN","MEERSSEMAN Claude",null,null,"017079X",13,"R1",3.9624999999999999,null,0,13,"N3 42/2",3.9874999999999998,null,1,12,"N3",1.8314606741573032,null,"*","13","N3",0.37790697674418605,null,1,null,null,null,"OK"]
[431,"RONCHIN","MORTREUX Isabelle",null,null,"148105J",null,null,null,null,null,null,null,null,null,null,null,null,null,null,null,null,null,null,null,null,null,null,null,"OK"]
[432,"RONCHIN","MORTREUX Nicolas",null,null,"142259N",null,null,null,null,null,null,null,null,null,null,null,null,null,null,null,null,null,null,null,null,null,null,null,"OK"]
[433,"RONCHIN","MORTREUX Thomas",null,null,"145789H",null,null,null,null,null,null,null,null,null,null,null,null,null,null,null,null,null,null,null,null,null,null,null,"OK"]
[434,"RONCHIN","MOULINS Jean-Louis",null,null,"124443H",13,"R3",1.7125000000000001,null,1,null,null,null,null,null,13,"R1",1.0561797752808988,null,1,"13","R1",0.26976744186046514,null,1,null,null,null,"OK"]
[435,"RONCHIN","NOVICK Robert",null,null,null,10,"R4",0.73874999999999991,null,"*",null,null,null,null,null,null,null,null,null,null,null,null,null,null,null,null,null,null,"OK"]
[436,"RONCHIN","PICAVET Jeanne marie",null,null,"145790I",null,null,null,null,null,null,null,null,null,null,null,null,null,null,null,null,null,null,null,null,null,null,null,"OK"]
[437,"RONCHIN","PICOT Luc",null,null,"109152E",13,"R1",3.6875,null,0,13,"N3 42/2",4.3999999999999995,null,1,null,null,null,null,null,"13","R1",0.33255813953488372,null,1,null,null,null,"OK"]
[438,"RONCHIN","PICOT Marc",null,null,"016639Z",13,"N3",4.1249999999999991,null,0,13,"N3 42/2",5.0124999999999993,null,1,12,"N3",2.0337078651685392,null,"*","13","N3",0.43372093023255814,null,1,null,null,null,"OK"]
[439,"RONCHIN","PICOT Maryse",null,null,"016821Z",10,"R4",0.57374999999999998,null,"*",null,null,null,null,null,null,null,null,null,null,null,null,null,null,null,null,null,null,"OK"]
[440,"RONCHIN","PODESZWA Ghislain",null,null,"141348M",13,"R3",1.2749999999999999,null,1,null,null,null,null,null,13,"R2",0.8764044943820225,null,1,null,null,null,null,null,null,null,null,"OK"]
[441,"RONCHIN","POLY Daniel",null,null,"124513Z",null,null,null,null,null,null,null,null,null,null,null,null,null,null,null,null,null,null,null,null,null,null,null,"OK"]
[442,"RONCHIN","PONCHANT Grégory",null,null,"016749F",12,"N1",13.66,null,"*",13,"N1 47/2",11.36,null,1,13,"N1",2.56,null,1,10,"N2",0.505,null,"*",null,null,null,"OK"]
[443,"RONCHIN","PREVOTS Jacques",null,null,"102990E",null,null,null,null,null,null,null,null,null,null,null,null,null,null,null,null,null,null,null,null,null,null,null,"OK"]
[444,"RONCHIN","QUENNELLE Achille",null,null,"105370S",null,null,null,null,null,null,null,null,null,null,null,null,null,null,null,null,null,null,null,null,null,null,null,"OK"]
[445,"RONCHIN","RESENDE Serge",null,null,"110596S",null,null,null,null,null,null,null,null,null,null,null,null,null,null,null,null,null,null,null,null,null,null,null,"OK"]
[446,"RONCHIN","REYNAERT Pierre",null,null,"017109B",8,"N3",6.2074999999999996,null,"*",13,"N3 42/2",5.8125,null,1,13,"N1",2.37,null,1,"13","N2",0.58599999999999997,null,1,null,null,null,"OK"]
[447,"RONCHIN","REYNAERT Zoe",null,null,"133092Y",null,null,null,null,null,null,null,null,null,null,null,null,null,null,null,null,null,null,null,null,null,null,null,"OK"]
[448,"RONCHIN","REZZOUK Youcef",null,null,"141358W",null,null,null,null,null,null,null,null,null,null,null,null,null,null,null,null,null,null,null,null,null,null,null,"OK"]
[449,"RONCHIN","ROUZE Daniel",null,null,"017336U",13,"R3",1.6125,null,1,null,null,null,null,null,13,"R1",0.9550561797752809,null,0,null,null,null,null,null,null,null,null,"OK"]
[450,"RONCHIN","SCHIANCHI Nicolas",null,null,"141522E",null,null,null,null,null,null,null,null,null,null,null,null,null,null,null,null,null,null,null,null,null,null,null,"OK"]
[451,"RONCHIN","SERRAJ Lotfi",null,null,"147028N",null,null,null,null,null,null,null,null,null,null,null,null,null,null,null,null,null,null,null,null,null,null,null,"OK"]
[452,"RONCHIN","STOCKER Daniel",null,null,"017348G",12,"R2",2.7,null,"*",12,"R1 42/2",2.2749999999999999,null,"*",13,"R1",1.101123595505618,null,1,"13","R1",0.35,null,1,null,null,null,"OK"]
[453,"RONCHIN","SYNQUINTYN Dave",null,null,"147029P",13,"R3",1.2124999999999999,null,1,null,null,null,null,null,null,null,null,null,null,null,null,null,null,null,null,null,null,"OK"]
[454,"RONCHIN","TAFFIN Emmanuel",null,null,"114159T",13,"N3",6.9499999999999993,null,1,13,"N2 47/2",4.34,null,0,13,"N3",1.9213483146067416,null,1,"13","N3",0.32906976744186045,null,0,null,null,null,"OK"]
[455,"RONCHIN","TARGIE Geoffrey",null,null,"131234M",null,null,null,null,null,null,null,null,null,null,null,null,null,null,null,null,null,null,null,null,null,null,null,"OK"]
[456,"RONCHIN","TATULA Olivier",null,null,"143936A",null,null,null,null,null,null,null,null,null,null,null,null,null,null,null,null,null,null,null,null,null,null,null,"OK"]
[457,"RONCHIN","TESSON Dominique",null,null,"016957F",null,null,null,null,null,null,null,null,null,null,null,null,null,null,null,null,null,null,null,null,null,null,null,"OK"]
[458,"RONCHIN","VAN GOETHEM Andre",null,null,"133152G",null,null,null,null,null,null,null,null,null,null,null,null,null,null,null,null,null,null,null,null,null,null,null,"OK"]
[459,"RONCHIN","VANHOUTTE Roland",null,null,"147031R",null,null,null,null,null,null,null,null,null,null,null,null,null,null,null,null,null,null,null,null,null,null,null,"OK"]
[460,"RONCHIN","VANHOUTTE Sebastien",null,null,"147033T",null,null,null,null,null,null,null,null,null,null,null,null,null,null,null,null,null,null,null,null,null,null,null,"OK"]
[461,"RONCHIN","VILLIERS Bernard",null,null,"014334I",null,null,null,null,null,12,"Masters 47/2",20.681999999999999,null,"*",13,"Master",8.58,null,1,"13","Master",1.0489999999999999,null,1,null,null,null,"OK"]
[462,"RONCHIN","VINCENT Luc",null,null,"133278C",null,null,null,null,null,null,null,null,null,null,null,null,null,null,null,null,null,null,null,null,null,null,null,"OK"]
[463,"RONCHIN","VINCENT Niel",null,null,"138716G",null,null,null,null,null,null,null,null,null,null,null,null,null,null,null,null,null,null,null,null,null,null,null,"OK"]
[464,"RONCHIN","WELSCHBILLIG Thomas",null,null,"138718I",null,null,null,null,null,null,null,null,null,null,null,null,null,null,null,null,null,null,null,null,null,null,null,"OK"]
[465,"RONCHIN","WILLEM Richard",null,null,"138354I",null,null,null,null,null,null,null,null,null,null,null,null,null,null,null,null,null,null,null,null,null,null,null,"OK"]
[466,"ST POL SUR MER","BATAILLE Michel",null,null,"016643D",9,"R3",1.6912499999999999,null,"*",null,null,null,null,null,8,"R2",0.9550561797752809,null,"*",8,"R2",0.23604651162790699,null,"*",null,null,null,"OK"]
[467,"ST POL SUR MER","BERNAL Manuel",null,null,"017389V",null,null,null,null,null,null,null,null,null,null,null,null,null,null,null,null,null,null,null,null,null,null,null,"OK"]
[468,"ST POL SUR MER","BLANCHON Claude",null,null,"125570Q",null,null,null,null,null,null,null,null,null,null,null,null,null,null,null,null,null,null,null,null,null,null,null,"OK"]
[469,"ST POL SUR MER","BOUCHART Christophe",null,null,"016693B",9,"R2",2.7562500000000001,null,"*",null,null,null,null,null,11,"R1",1.3033707865168538,null,"*",9,"N3",0.37674418604651166,null,"*",null,null,null,"OK"]
[470,"ST POL SUR MER","BOURET Jackie",null,null,"103033V",null,null,null,null,null,null,null,null,null,null,null,null,null,null,null,null,null,null,null,null,null,null,null,"OK"]
[471,"ST POL SUR MER","COMBES Martial",null,null,"016790U",null,null,null,null,null,null,null,null,null,null,null,null,null,null,null,null,null,null,null,null,null,null,null,"OK"]
[472,"ST POL SUR MER","DEMAZIERES David",null,null,"016939N",null,null,null,null,null,12,"N3 42/2",4.7237499999999999,null,"*",8,"N3",2.1460674157303368,null,"*",null,null,null,null,null,null,null,null,"OK"]
[473,"ST POL SUR MER","DESMAZIERES Cecile",null,null,"017004A",null,null,null,null,null,null,null,null,null,null,null,null,null,null,null,null,null,null,null,null,null,null,null,"OK"]
[474,"ST POL SUR MER","FRADET David",null,null,null,9,"N3",6.0624999999999991,null,"*",null,null,null,null,null,9,"R1",1.6179775280898876,null,"*",10,"N2",0.41099999999999998,null,null,null,null,null,"OK"]
[475,"ST POL SUR MER","FRADET Noël",null,null,"016695D",12,"R2",2.7374999999999998,null,"*",12,"R1 42/2",1.9012499999999999,null,"*",13,"R1",0.9438202247191011,null,0,"13","R1",0.26744186046511631,null,1,null,null,null,"OK"]
[476,"ST POL SUR MER","HUYGHE Claude",null,null,"138374C",13,"R2",2.8000000000000003,null,1,13,"R1 42/2",3.05,null,1,13,"R1",1.4719101123595506,null,1,null,null,null,null,null,null,null,null,"OK"]
[477,"ST POL SUR MER","LEMATRE Alexis",null,null,"133123D",10,"R3",1.4312499999999999,null,"*",null,null,null,null,null,null,null,null,null,null,null,null,null,null,null,null,null,null,"OK"]
[478,"ST POL SUR MER","LEMATRE André",null,null,null,11,"R3",1.6375,null,"*",null,null,null,null,null,null,null,null,null,null,10,"N3",0.3604651162790698,null,"*",null,null,null,"OK"]
[479,"ST POL SUR MER","LEMATRE Grégory",null,null,null,8,"R2",2.38,null,"*",null,null,null,null,null,9,"R1",1.4719101123595506,null,"*",8,"N3",0.49767441860465117,null,"*",null,null,null,"OK"]
[480,"ST POL SUR MER","LEMATRE Jérémy",null,null,"127735X",10,"R2",2.3424999999999998,null,"*",null,null,null,null,null,10,"R1",1.2471910112359552,null,"*",10,"N3",0.43023255813953487,null,"*",null,null,null,"OK"]
[481,"ST POL SUR MER","RAMON Robert",null,null,"016847Z",12,"R3",0.93374999999999997,null,null,null,null,null,null,null,12,"R2",0.7415730337078652,null,"*","13","R2",0.19651162790697677,null,1,null,null,null,"OK"]
[482,"ST POL SUR MER","SAINT MAXENT Stéphane",null,null,"127733V",13,"R4",1.075,null,1,null,null,null,null,null,13,"R2",0.62921348314606751,null,1,10,"R2",0.13953488372093023,null,"*",null,null,null,"OK"]
[483,"ST POL SUR MER","VEREECQUE Bernard",null,null,"116590G",13,"R4",1,null,1,null,null,null,null,null,13,"R2",0.62921348314606751,null,1,10,"R2",0.16744186046511628,null,"*",null,null,null,"OK"]
[484,"ST POL SUR MER","WADOUX Jean-François",null,null,"016793X",13,"R3",1.6375,null,1,null,null,null,null,null,13,"R2",0.6741573033707865,null,1,null,null,null,null,null,null,null,null,"OK"]
[485,"ST POL SUR MER","WEISBECKER Jean-Claude",null,null,null,11,"R4",0.94374999999999998,null,"*",null,null,null,null,null,11,"R2",0.7415730337078652,null,"*",null,null,null,null,null,null,null,null,"OK"]
[486,"VILLENEUVE D ASCQ","ACHERE Andre",null,null,"124428S",null,null,null,null,null,null,null,null,null,null,null,null,null,null,null,null,null,null,null,null,null,null,null,"OK"]
[487,"VILLENEUVE D ASCQ","ACHERE Georges",null,null,"136455H",null,null,null,null,null,null,null,null,null,null,null,null,null,null,null,null,null,null,null,null,null,null,null,"OK"]
[488,"VILLENEUVE D ASCQ","BENINCA Jean-Pierre",null,null,"121725T",13,"R3",1.1375,null,0,null,null,null,null,null,13,"R2",0.64044943820224709,null,1,"13","R2",0.16627906976744186,null,1,null,null,null,"OK"]
[489,"VILLENEUVE D ASCQ","BOUILLET Antoine",null,null,"105367P",10,"R2",2.4162499999999998,null,1,null,null,null,null,null,10,"R1",1.258426966292135,null,"*","13","N3",0.47209302325581398,null,1,null,null,null,"OK"]
[490,"VILLENEUVE D ASCQ","BOUILLET Pierre",null,null,"016927B",10,"R4",0.79999999999999993,null,1,null,null,null,null,null,9,"R1",0.8539325842696629,null,null,null,null,null,null,null,null,null,null,"OK"]
[491,"VILLENEUVE D ASCQ","BOUVART Pierre",null,null,"146927D",13,"R2",3.05,null,1,null,null,null,null,null,null,null,null,null,null,null,null,null,null,null,null,null,null,"OK"]
[492,"VILLENEUVE D ASCQ","BRUYERE Michel",null,null,"114150K",null,null,null,null,null,null,null,null,null,null,null,null,null,null,null,"13","N3",0.42209302325581394,null,1,null,null,null,"OK"]
[493,"VILLENEUVE D ASCQ","CHAIB Hassène",null,null,null,8,"R2",2.9325000000000001,null,1,null,null,null,null,null,8,"R1",1.2247191011235956,null,"*",8,"N3",0.41860465116279066,null,"*",null,null,null,"OK"]
[494,"VILLENEUVE D ASCQ","D ANGELO Alberto",null,null,"138705V",13,"R3",2.1124999999999998,null,1,13,"R1 42/2",2.4249999999999998,null,1,13,"R1",1.3707865168539326,null,1,"13","R1",0.31046511627906981,null,1,null,null,null,"OK"]
[495,"VILLENEUVE D ASCQ","DASSONVILLE Gérard",null,null,"127678S",12,"R4",0.65874999999999995,null,1,null,null,null,null,null,null,null,null,null,null,null,null,null,null,null,null,null,null,"OK"]
[496,"VILLENEUVE D ASCQ","DAUCHEZ Jean francois",null,null,"127690E",null,null,null,null,null,null,null,null,null,null,null,null,null,null,null,null,null,null,null,null,null,null,null,"OK"]
[497,"VILLENEUVE D ASCQ","DEGREEF Patrice",null,null,"124447L",10,"R2",2.1937499999999996,null,null,null,null,null,null,null,12,"R1",1.258426966292135,null,"*",10,"N3",0.36162790697674418,null,"*",null,null,null,"OK"]
[498,"VILLENEUVE D ASCQ","DELION Patrick",null,null,"016612Y",12,"R3",2.0999999999999996,null,1,11,"R1 42/2",2.2537499999999997,null,"*",null,null,null,null,null,"13","R1",0.29418604651162794,null,1,null,null,null,"OK"]
[499,"VILLENEUVE D ASCQ","DELRUE André",null,null,"105710U",13,"R3",1.7624999999999997,null,1,null,null,null,null,null,13,"R1",1.1348314606741572,null,1,"13","R1",0.31627906976744191,null,1,null,null,null,"OK"]
[500,"VILLENEUVE D ASCQ","DEMORY Laurent",null,null,"145643R",null,null,null,null,null,null,null,null,null,null,null,null,null,null,null,null,null,null,null,null,null,null,null,"OK"]
[501,"VILLENEUVE D ASCQ","DENNEAU Daniel",null,null,"146928E",null,null,null,null,null,null,null,null,null,null,null,null,null,null,null,null,null,null,null,null,null,null,null,"OK"]
[502,"VILLENEUVE D ASCQ","DEPREZ Jean",null,null,"017420A",12,"R3",1.54125,null,"*",11,"R1 42/2",1.7499999999999998,null,"*",12,"R2",0.76404494382022481,null,"*",11,"R2",0.21046511627906977,null,"*",null,null,null,"OK"]
[503,"VILLENEUVE D ASCQ","DESTAERKE Jean",null,null,"134161B",12,"R3",1.7799999999999998,null,"*",null,null,null,null,null,12,"R2",0.7303370786516854,null,"*",11,"R2",0.22441860465116281,null,"*",null,null,null,"OK"]
[504,"VILLENEUVE D ASCQ","DOMPIERRE Benoit",null,null,"146945Y",null,null,null,null,null,null,null,null,null,null,null,null,null,null,null,null,null,null,null,null,null,null,null,"OK"]
[505,"VILLENEUVE D ASCQ","DUTILLEUL Albert",null,null,"146509Z",null,null,null,null,null,null,null,null,null,null,null,null,null,null,null,null,null,null,null,null,null,null,null,"OK"]
[506,"VILLENEUVE D ASCQ","FALSE Franck",null,null,"016903D",13,"R1",4.6749999999999998,null,1,12,"R1 42/2",2.8437499999999996,null,"*",13,"R1",1.3820224719101124,null,1,null,null,null,null,null,null,null,null,"OK"]
[507,"VILLENEUVE D ASCQ","FOULON Michel",null,null,"016614A",null,null,null,null,null,13,"N3 42/2",4.3249999999999993,null,1,13,"N1",2.4,null,1,"13","N2",0.45900000000000002,null,1,null,null,null,"OK"]
[508,"VILLENEUVE D ASCQ","GAEREMYNCK Claude",null,null,"017000W",12,"R3",1.6762499999999998,null,"*",13,"R1 42/2",1.7125000000000001,null,1,13,"R1",0.97752808988764039,null,0,"13","N3",0.39883720930232563,null,1,null,null,null,"OK"]
[509,"VILLENEUVE D ASCQ","GENNIN Jean-Robert",null,null,null,10,"R4",0.80625000000000002,null,"*",null,null,null,null,null,10,"R2",0.4157303370786517,null,"*",10,"R2",0.19767441860465118,null,"*",null,null,null,"OK"]
[510,"VILLENEUVE D ASCQ","GROLLET Fabien",null,null,"110544S",13,"N3",8.7249999999999996,null,1,13,"N3 42/2",5.9499999999999993,null,1,13,"N1",2.38,null,1,"13","N2",0.41399999999999998,null,0,null,null,null,"OK"]
[511,"VILLENEUVE D ASCQ","GUILLUY Jean rene",null,null,"146929F",null,null,null,null,null,null,null,null,null,null,null,null,null,null,null,null,null,null,null,null,null,null,null,"OK"]
[512,"VILLENEUVE D ASCQ","HANTSON Thierry",null,null,"146930G",13,"R4",0.92499999999999993,null,1,null,null,null,null,null,null,null,null,null,null,null,null,null,null,null,null,null,null,"OK"]
[513,"VILLENEUVE D ASCQ","HUYGHE Jean-Claude",null,null,"016633T",13,"N1",14.5,null,1,13,"N2 47/2",7.31,null,1,13,"N1",2.4700000000000002,null,1,"13","N2",0.45600000000000002,null,1,null,null,null,"OK"]
[514,"VILLENEUVE D ASCQ","HUYGHE Jean-Paul",null,null,null,8,"R1",4.0462499999999997,null,"*",8,"R1 42/2",3.2712499999999998,null,"*",8,"R1",1.3932584269662922,null,"*",null,null,null,null,null,null,null,null,"OK"]
[515,"VILLENEUVE D ASCQ","LAPORTE Jean-François",null,null,"016953B",null,null,null,null,null,null,null,null,null,null,10,"N3",1.8089887640449438,null,"*",12,"N2",0.40600000000000003,null,null,null,null,null,"OK"]
[516,"VILLENEUVE D ASCQ","LE GOHEBEL Jacques",null,null,"127679T",13,"R3",1.4124999999999999,null,1,null,null,null,null,null,13,"R2",0.8202247191011236,null,1,"13","R2",0.22441860465116281,null,1,null,null,null,"OK"]
[517,"VILLENEUVE D ASCQ","LECROART Serge",null,null,"016925Z",13,"R3",1.3125,null,1,null,null,null,null,null,11,"R2",0.75280898876404501,null,"*",null,null,null,null,null,null,null,null,"OK"]
[518,"VILLENEUVE D ASCQ","LOSFELD René",null,null,"102972M",12,"R3",1.1587499999999999,null,null,null,null,null,null,null,12,"R2",0.78651685393258419,null,"*",null,null,null,null,null,null,null,null,"OK"]
[519,"VILLENEUVE D ASCQ","MAGNIEZ Roland",null,null,"119354O",null,null,null,null,null,null,null,null,null,null,null,null,null,null,null,null,null,null,null,null,null,null,null,"OK"]
[520,"VILLENEUVE D ASCQ","MILLET Michel",null,null,"017423D",null,null,null,null,null,null,null,null,null,null,12,"N1",2.4,null,"*","13","N1",0.67100000000000004,null,1,null,null,null,"OK"]
[521,"VILLENEUVE D ASCQ","MISSIAEN Jean-Luc",null,null,"016616C",10,"N3",7.9337499999999999,null,"*",13,"N3 42/2",5.4124999999999996,null,1,10,"N3",2.0674157303370788,null,"*","13","N3",0.51046511627906976,null,1,null,null,null,"OK"]
[522,"VILLENEUVE D ASCQ","MORTREUX Patrick",null,null,"016816U",13,"R1",4.0374999999999996,null,1,13,"R1 42/2",3.4499999999999997,null,1,12,"R1",1.4157303370786516,null,"*","13","N3",0.41279069767441862,null,1,null,null,null,"OK"]
[523,"VILLENEUVE D ASCQ","PAQUET Yves",null,null,"145642Q",null,null,null,null,null,null,null,null,null,null,null,null,null,null,null,null,null,null,null,null,null,null,null,"OK"]
[524,"VILLENEUVE D ASCQ","PIC Lorenzo",null,null,"146462E",null,null,null,null,null,null,null,null,null,null,null,null,null,null,null,null,null,null,null,null,null,null,null,"OK"]
[525,"VILLENEUVE D ASCQ","POLARD Serge",null,null,"102977R",12,"R3",1.5024999999999999,null,"*",null,null,null,null,null,12,"R2",0.6629213483146067,null,"*","13","R1",0.22325581395348837,null,0,null,null,null,"OK"]
[526,"VILLENEUVE D ASCQ","POTTEAU Patrick",null,null,"145782A",13,"R1",4.9625000000000004,null,1,null,null,null,null,null,13,"N3",2,null,1,null,null,null,null,null,null,null,null,"OK"]
[527,"VILLENEUVE D ASCQ","ROSEAU Dominique",null,null,"143924O",11,"R4",0.83374999999999999,null,"*",null,null,null,null,null,null,null,null,null,null,null,null,null,null,null,null,null,null,"OK"]
[528,"VILLENEUVE D ASCQ","SOYEUX Clement",null,null,"146510A",null,null,null,null,null,null,null,null,null,null,null,null,null,null,null,null,null,null,null,null,null,null,null,"OK"]
[529,"VILLENEUVE D ASCQ","STEVENS Maurice",null,null,"136456I",null,null,null,null,null,null,null,null,null,null,null,null,null,null,null,null,null,null,null,null,null,null,null,"OK"]
[530,"VILLENEUVE D ASCQ","TRUQUET David",null,null,null,9,"R2",2.8762500000000002,null,"*",null,null,null,null,null,null,null,null,null,null,null,null,null,null,null,null,null,null,"OK"]
[531,"VILLENEUVE D ASCQ","VANDENBOSSCHE Albert",null,null,null,10,"R3",1.7362499999999998,null,"*",null,null,null,null,null,10,"R1",0.75280898876404501,null,null,null,null,null,null,null,null,null,null,"OK"]
[532,"VILLENEUVE D ASCQ","VANDEWEGHE Frédéric",null,null,null,10,"N3",8.1349999999999998,null,"*",10,"N3 42/2",5.3624999999999998,null,"*",10,"N3",2.5280898876404496,null,"*",10,"N3",0.51395348837209298,null,"*",null,null,null,"OK"]
[533,"VILLENEUVE D ASCQ","VANGANSBEKE Gérard",null,null,"016624K",11,"R2",2.9537499999999999,null,"*",11,"N3 42/2",2.9162500000000002,null,null,13,"R1",1.6741573033707864,null,1,"13","N2",0.51800000000000002,null,1,null,null,null,"OK"]
[534,"VILLENEUVE D ASCQ","VANKIEKEN David",null,null,"016881H",13,"N1",16.440000000000001,null,1,13,"N2 47/2",7.02,null,1,13,"N1",2.61,null,1,"13","N2",0.42,null,0,null,null,null,"OK"]
[535,"VILLENEUVE D ASCQ","VERBERT Anne claire",null,null,"146931H",null,null,null,null,null,null,null,null,null,null,null,null,null,null,null,null,null,null,null,null,null,null,null,"OK"]
[536,"VILLENEUVE D ASCQ","VERFAILLE Daniel",null,null,"124451P",10,"R3",1.2262499999999998,null,"*",null,null,null,null,null,null,null,null,null,null,null,null,null,null,null,null,null,null,"OK"]
[537,"VILLENEUVE D ASCQ","VERGRIETE Michel",null,null,"016618E",11,"R3",1.4274999999999998,null,"*",null,null,null,null,null,12,"R2",0.65168539325842689,null,"*",null,null,null,null,null,null,null,null,"OK"]
[538,null,null,null,null,null,null,null,null,null,null,null,null,null,null,null,null,null,null,null,null,null,null,null,null,null,null,null,null,"OK"]
[539,null,null,null,null,null,null,null,null,null,null,null,null,null,null,null,null,null,null,null,null,null,null,null,null,null,null,null,null,"OK"]
[540,null,null,null,null,null,null,null,null,null,null,null,null,null,null,null,null,null,null,null,null,null,null,null,null,null,null,null,null,"OK"]
[541,null,null,null,null,null,null,null,null,null,null,null,null,null,null,null,null,null,null,null,null,null,null,null,null,null,null,null,null,"OK"]
[542,null,null,null,null,null,null,null,null,null,null,null,null,null,null,null,null,null,null,null,null,null,null,null,null,null,null,null,null,"OK"]
[543,null,null,null,null,null,null,null,null,null,null,null,null,null,null,null,null,null,null,null,null,null,null,null,null,null,null,null,null,"OK"]
[544,null,null,null,null,null,null,null,null,null,null,null,null,null,null,null,null,null,null,null,null,null,null,null,null,null,null,null,null,"OK"]
[545,null,null,null,null,null,null,null,null,null,null,null,null,null,null,null,null,null,null,null,null,null,null,null,null,null,null,null,null,"OK"]
[546,null,null,null,null,null,null,null,null,null,null,null,null,null,null,null,null,null,null,null,null,null,null,null,null,null,null,null,null,"OK"]
[547]
[548]
[549]
[550]
[551]
[552]
[553]
[554]
[555]
[556]
[557]
[558]
[559]
[560]
[561]
[562]
[563]
[564]
[565]
[566]
[567]
[568]
[569]
[570]
[571]
[572]
[573]
[574]
[575]
[576]
[577]
[578]
[579]
[580]
[581]
[582]
[583]
[584]
[585]
[586]
[587]
[588]
[589]
[590]
[591]
[592]
[593]
[594]
[595]
[596]
[597]
[598]
[599]
[600]
[601]